{"text_format":"1","workbook":"xlsx","n_sheets":6,"sheets":["Önceliklendirme","Eğitim Öğretim","AR-GE","Uygulama ve Hizmet","İdari ve Destek","Yönetsel"],"not_rendered":{"charts":0,"images":1,"macros":1,"external_links":0,"defined_names":0,"comments":6,"pivot_tables":0},"unopened":[],"bounds":{"document_bytes":16777216,"sheet_cells":100000,"rows_first":2000,"rows_last":500,"rows_between":2000,"halvings":0,"cell_chars":16384,"cell_head_chars":4096},"cells_cut":0,"cells_raw":0,"read":"whole","date_system":"1900"}

{"sheet":"Önceliklendirme","index":0,"n_rows":8,"n_cols":22,"rows_kept":8,"cut":false,"hidden":false,"merged":[[0,0,1,1],[0,2,1,21],[2,0,3,0],[2,1,3,1],[2,3,2,10],[2,11,2,15],[2,16,2,21]]}
[{"$error":"#VALUE!"},null,"RİSK ANALİZİ ÖNCELİKLENDİRME"]
[]
["SIRA","İLGİLİ SAYFA","Doküman No: FRM-0348\nYayın Tarihi: 03.10.2024\nRevizyon Tarihi: 03.10.2024\nRevizyon No: 00","A (Mevcut Durum)",null,null,null,null,null,null,null,"B (Önlemlerin Alınmasından Sonra Yapılan Risk Değerlendirmesi)",null,null,null,null,"C (Sonuç)"]
[null,null,"Risk Tanımı","Risk Giderici Mevcut Faaliyet","İlgili Belge","Etki","Olasılık","Puan","Risk Derecesi","Karar","İyileştirme","Risk Giderme Yöntemi (Düzeltici ve Önleyici Kontrol Tedbirleri)","Sorumlu (Birim/Kişi)","Termin \n(Bitiş Tarihi)","Kaynak","Sonuçlar nasıl değerlendirilecek?","Etki","Olasılık","Puan","Risk Derecesi","Karar","İyileştirme"]
[1,"Uygulama ve Hizmet","Öğretim elemanlarına ait iç hat telefonlarının çalışmaması ","Meslek Yüksekokulumuzda öğretim elemanlarının iç hat araçlarının (telefon) bakım çalışması ","EBYS üzerinden sorunun bildirilmesi Bilgi İşlem Daire Başkanlığına yapılmıştır",3,5,{"$f":"F5*G5","v":15},{"$f":"IF(H5<=4,\"Çok Düşük\",(IF(H5<=8,\"Düşük\",(IF(H5<=14,\"Orta\",(IF(H5<=19,\"Yüksek\",(IF(H5<=25,\"Çok Yüksek\",)))))))))","v":"Yüksek"},"Devretmek",{"$f":"IF(H5<=12,\"Gerek Yoktur\",(IF(H5<=25,\"Gereklidir\")))","v":"Gereklidir"},null,null,null,null,null,1,1,{"$f":"Q5*R5","v":1},{"$f":"IF(S5<=4,\"Çok Düşük\",(IF(S5<=8,\"Düşük\",(IF(S5<=14,\"Orta\",(IF(S5<=19,\"Yüksek\",(IF(S5<=25,\"Çok Yüksek\",)))))))))","v":"Çok Düşük"},"Devretmek",{"$f":"IF(S5<=12,\"Gerek Yoktur\",(IF(S5<=25,\"Gereklidir\")))","v":"Gerek Yoktur"}]
[2,"Uygulama ve Hizmet","Ulaşım ve barınma imkanlarının yeterli olmaması","İlçede öğrenciler için barınma imkanı sağlayacak KYK yurdunun bulunması",null,4,4,{"$f":"F6*G6","v":16},{"$f":"IF(H6<=4,\"Çok Düşük\",(IF(H6<=8,\"Düşük\",(IF(H6<=14,\"Orta\",(IF(H6<=19,\"Yüksek\",(IF(H6<=25,\"Çok Yüksek\",)))))))))","v":"Yüksek"},"Devretmek","Gereklidir",null,null,null,null,null,1,1,{"$f":"Q6*R6","v":1},{"$f":"IF(S6<=4,\"Çok Düşük\",(IF(S6<=8,\"Düşük\",(IF(S6<=14,\"Orta\",(IF(S6<=19,\"Yüksek\",(IF(S6<=25,\"Çok Yüksek\",)))))))))","v":"Çok Düşük"},"Devretmek",{"$f":"IF(S6<=12,\"Gerek Yoktur\",(IF(S6<=25,\"Gereklidir\")))","v":"Gerek Yoktur"}]
[3,"İdari ve Destek","Yemek Hizmetinin Sağlanamaması Riski","Sağlık, Kültür ve Spor Daire Başkanlığı tarafından gerekli desteğin sağlanması ","Sağlık, Kültür ve Spor Daire Başkanlığına yazı yazılmıştır",4,4,16,"Yüksek","Devretmek","Gereklidir",null,null,null,null,null,1,1,1,"Çok Düşük","Devretmek","Gerek Yoktur"]
[4,"Yönetsel","Bina Dış cephesinden yağmur suyunun sızması ","İlgili birimlerce gerekli bakım, onarım çalışmasının yapılması ","Yapı İşleri Daire Başkanlığına yazı yazılmıştır.",3,5,15,"Yüksek","Devretmek","Gereklidir",null,null,null,null,null,1,1,1,"Çok Düşük","Devretmek","Gerek Yoktur"]

{"sheet":"Eğitim Öğretim","index":1,"n_rows":154,"n_cols":22,"rows_kept":154,"cut":false,"hidden":false,"merged":[[0,0,1,1],[2,3,2,10],[2,16,2,21],[0,2,1,21],[2,0,3,0],[2,1,3,1],[2,11,2,15]]}
[{"$error":"#VALUE!"},null,"EĞİTİM VE ÖĞRETİM SÜREÇLERİ\nRİSK ANALİZİ"]
[]
["SIRA","İLGİLİ BİRİM","Doküman No: FRM-0348\nYayın Tarihi: 03.10.2024\nRevizyon Tarihi: 03.10.2024\nRevizyon No: 00","A (Mevcut Durum)",null,null,null,null,null,null,null,"B (Önlemlerin Alınmasından Sonra Yapılan Risk Değerlendirmesi)",null,null,null,null,"C (Sonuç)"]
[null,null,"Risk Tanımı","Risk Giderici Mevcut Faaliyet","İlgili Belge","Etki","Olasılık","Puan","Risk Derecesi","Karar","İyileştirme","Risk Giderme Yöntemi (Düzeltici ve Önleyici Kontrol Tedbirleri)","Sorumlu (Birim/Kişi)","Termin \n(Bitiş Tarihi)","Kaynak","Sonuçlar nasıl değerlendirilecek?","Etki","Olasılık","Puan","Risk Derecesi","Karar","İyileştirme"]
[1,"Hilvan Meslek Yüksekokulu ","Başarılı öğrencilerin üniversiteye çekilememesi","Öğrenci barınma ve sosyal alanlarının arttırılması, Öğrenciler için KYK yurdunun yapılması ",null,3,3,{"$f":"F5*G5","v":9},{"$f":"IF(H5<=4,\"Çok Düşük\",(IF(H5<=8,\"Düşük\",(IF(H5<=14,\"Orta\",(IF(H5<=19,\"Yüksek\",(IF(H5<=25,\"Çok Yüksek\",)))))))))","v":"Orta"},"Devretmek",{"$f":"IF(H5<=12,\"Gerek Yoktur\",(IF(H5<=25,\"Gereklidir\")))","v":"Gerek Yoktur"},null,null,null,null,null,1,1,{"$f":"Q5*R5","v":1},{"$f":"IF(S5<=4,\"Çok Düşük\",(IF(S5<=8,\"Düşük\",(IF(S5<=14,\"Orta\",(IF(S5<=19,\"Yüksek\",(IF(S5<=25,\"Çok Yüksek\",)))))))))","v":"Çok Düşük"},"Kaçınmak",{"$f":"IF(S5<=12,\"Gerek Yoktur\",(IF(S5<=25,\"Gereklidir\")))","v":"Gerek Yoktur"}]
[2,null,null,null,null,1,1,1,"Çok Düşük","Devretmek","Gerek Yoktur",null,null,null,null,null,1,1,1,"Çok Düşük","Devretmek","Gerek Yoktur"]
[3,null,null,null,null,1,1,1,"Çok Düşük","Devretmek","Gerek Yoktur",null,null,null,null,null,1,1,1,"Çok Düşük","Devretmek","Gerek Yoktur"]
[4,null,null,null,null,1,1,1,"Çok Düşük","Devretmek","Gerek Yoktur",null,null,null,null,null,1,1,1,"Çok Düşük","Devretmek","Gerek Yoktur"]
[5,null,null,null,null,1,1,{"$f":"F9*G9","v":1},{"$f":"IF(H9<=4,\"Çok Düşük\",(IF(H9<=8,\"Düşük\",(IF(H9<=14,\"Orta\",(IF(H9<=19,\"Yüksek\",(IF(H9<=25,\"Çok Yüksek\",)))))))))","v":"Çok Düşük"},"Devretmek",{"$f":"IF(H9<=12,\"Gerek Yoktur\",(IF(H9<=25,\"Gereklidir\")))","v":"Gerek Yoktur"},null,null,null,null,null,1,1,{"$f":"Q9*R9","v":1},{"$f":"IF(S9<=4,\"Çok Düşük\",(IF(S9<=8,\"Düşük\",(IF(S9<=14,\"Orta\",(IF(S9<=19,\"Yüksek\",(IF(S9<=25,\"Çok Yüksek\",)))))))))","v":"Çok Düşük"},"Devretmek",{"$f":"IF(S9<=12,\"Gerek Yoktur\",(IF(S9<=25,\"Gereklidir\")))","v":"Gerek Yoktur"}]
[6,null,null,null,null,1,1,{"$f":"F10*G10","v":1},"Çok Düşük","Devretmek",{"$f":"IF(H10<=12,\"Gerek Yoktur\",(IF(H10<=25,\"Gereklidir\")))","v":"Gerek Yoktur"},null,null,null,null,null,1,1,{"$f":"Q10*R10","v":1},"Çok Düşük","Devretmek",{"$f":"IF(S10<=12,\"Gerek Yoktur\",(IF(S10<=25,\"Gereklidir\")))","v":"Gerek Yoktur"}]
[7,null,null,null,null,1,1,1,"Çok Düşük","Devretmek","Gerek Yoktur",null,null,null,null,null,1,1,1,"Çok Düşük","Devretmek","Gerek Yoktur"]
[8,null,null,null,null,1,1,1,"Çok Düşük","Devretmek","Gerek Yoktur",null,null,null,null,null,1,1,1,"Çok Düşük","Devretmek","Gerek Yoktur"]
[9,null,null,null,null,1,1,1,"Çok Düşük","Devretmek","Gerek Yoktur",null,null,null,null,null,1,1,1,"Çok Düşük","Devretmek","Gerek Yoktur"]
[10,null,null,null,null,1,1,1,"Çok Düşük","Devretmek","Gerek Yoktur",null,null,null,null,null,1,1,1,"Çok Düşük","Devretmek","Gerek Yoktur"]
[11,null,null,null,null,1,1,1,"Çok Düşük","Devretmek","Gerek Yoktur",null,null,null,null,null,1,1,1,"Çok Düşük","Devretmek","Gerek Yoktur"]
[12,null,null,null,null,1,1,1,"Çok Düşük","Devretmek","Gerek Yoktur",null,null,null,null,null,1,1,1,"Çok Düşük","Devretmek","Gerek Yoktur"]
[13,null,null,null,null,1,1,1,"Çok Düşük","Devretmek","Gerek Yoktur",null,null,null,null,null,1,1,1,"Çok Düşük","Devretmek","Gerek Yoktur"]
[14,null,null,null,null,1,1,1,"Çok Düşük","Devretmek","Gerek Yoktur",null,null,null,null,null,1,1,1,"Çok Düşük","Devretmek","Gerek Yoktur"]
[15,null,null,null,null,1,1,1,"Çok Düşük","Devretmek","Gerek Yoktur",null,null,null,null,null,1,1,1,"Çok Düşük","Devretmek","Gerek Yoktur"]
[16,null,null,null,null,1,1,1,"Çok Düşük","Devretmek","Gerek Yoktur",null,null,null,null,null,1,1,1,"Çok Düşük","Devretmek","Gerek Yoktur"]
[17,null,null,null,null,1,1,1,"Çok Düşük","Devretmek","Gerek Yoktur",null,null,null,null,null,1,1,1,"Çok Düşük","Devretmek","Gerek Yoktur"]
[18,null,null,null,null,1,1,1,"Çok Düşük","Devretmek","Gerek Yoktur",null,null,null,null,null,1,1,1,"Çok Düşük","Devretmek","Gerek Yoktur"]
[19,null,null,null,null,1,1,1,"Çok Düşük","Devretmek","Gerek Yoktur",null,null,null,null,null,1,1,1,"Çok Düşük","Devretmek","Gerek Yoktur"]
[20,null,null,null,null,1,1,1,"Çok Düşük","Devretmek","Gerek Yoktur",null,null,null,null,null,1,1,1,"Çok Düşük","Devretmek","Gerek Yoktur"]
[21,null,null,null,null,1,1,1,"Çok Düşük","Devretmek","Gerek Yoktur",null,null,null,null,null,1,1,1,"Çok Düşük","Devretmek","Gerek Yoktur"]
[22,null,null,null,null,1,1,1,"Çok Düşük","Devretmek","Gerek Yoktur",null,null,null,null,null,1,1,1,"Çok Düşük","Devretmek","Gerek Yoktur"]
[23,null,null,null,null,1,1,1,"Çok Düşük","Devretmek","Gerek Yoktur",null,null,null,null,null,1,1,1,"Çok Düşük","Devretmek","Gerek Yoktur"]
[24,null,null,null,null,1,1,1,"Çok Düşük","Devretmek","Gerek Yoktur",null,null,null,null,null,1,1,1,"Çok Düşük","Devretmek","Gerek Yoktur"]
[25,null,null,null,null,1,1,1,"Çok Düşük","Devretmek","Gerek Yoktur",null,null,null,null,null,1,1,1,"Çok Düşük","Devretmek","Gerek Yoktur"]
[26,null,null,null,null,1,1,1,"Çok Düşük","Devretmek","Gerek Yoktur",null,null,null,null,null,1,1,1,"Çok Düşük","Devretmek","Gerek Yoktur"]
[27,null,null,null,null,1,1,1,"Çok Düşük","Devretmek","Gerek Yoktur",null,null,null,null,null,1,1,1,"Çok Düşük","Devretmek","Gerek Yoktur"]
[28,null,null,null,null,1,1,1,"Çok Düşük","Devretmek","Gerek Yoktur",null,null,null,null,null,1,1,1,"Çok Düşük","Devretmek","Gerek Yoktur"]
[29,null,null,null,null,1,1,1,"Çok Düşük","Devretmek","Gerek Yoktur",null,null,null,null,null,1,1,1,"Çok Düşük","Devretmek","Gerek Yoktur"]
[30,null,null,null,null,1,1,1,"Çok Düşük","Devretmek","Gerek Yoktur",null,null,null,null,null,1,1,1,"Çok Düşük","Devretmek","Gerek Yoktur"]
[31,null,null,null,null,1,1,1,"Çok Düşük","Devretmek","Gerek Yoktur",null,null,null,null,null,1,1,1,"Çok Düşük","Devretmek","Gerek Yoktur"]
[32,null,null,null,null,1,1,1,"Çok Düşük","Devretmek","Gerek Yoktur",null,null,null,null,null,1,1,1,"Çok Düşük","Devretmek","Gerek Yoktur"]
[33,null,null,null,null,1,1,1,"Çok Düşük","Devretmek","Gerek Yoktur",null,null,null,null,null,1,1,1,"Çok Düşük","Devretmek","Gerek Yoktur"]
[34,null,null,null,null,1,1,1,"Çok Düşük","Devretmek","Gerek Yoktur",null,null,null,null,null,1,1,1,"Çok Düşük","Devretmek","Gerek Yoktur"]
[35,null,null,null,null,1,1,1,"Çok Düşük","Devretmek","Gerek Yoktur",null,null,null,null,null,1,1,1,"Çok Düşük","Devretmek","Gerek Yoktur"]
[36,null,null,null,null,1,1,1,"Çok Düşük","Devretmek","Gerek Yoktur",null,null,null,null,null,1,1,1,"Çok Düşük","Devretmek","Gerek Yoktur"]
[37,null,null,null,null,1,1,1,"Çok Düşük","Devretmek","Gerek Yoktur",null,null,null,null,null,1,1,1,"Çok Düşük","Devretmek","Gerek Yoktur"]
[38,null,null,null,null,1,1,1,"Çok Düşük","Devretmek","Gerek Yoktur",null,null,null,null,null,1,1,1,"Çok Düşük","Devretmek","Gerek Yoktur"]
[39,null,null,null,null,1,1,1,"Çok Düşük","Devretmek","Gerek Yoktur",null,null,null,null,null,1,1,1,"Çok Düşük","Devretmek","Gerek Yoktur"]
[40,null,null,null,null,1,1,1,"Çok Düşük","Devretmek","Gerek Yoktur",null,null,null,null,null,1,1,1,"Çok Düşük","Devretmek","Gerek Yoktur"]
[41,null,null,null,null,1,1,1,"Çok Düşük","Devretmek","Gerek Yoktur",null,null,null,null,null,1,1,1,"Çok Düşük","Devretmek","Gerek Yoktur"]
[42,null,null,null,null,1,1,1,"Çok Düşük","Devretmek","Gerek Yoktur",null,null,null,null,null,1,1,1,"Çok Düşük","Devretmek","Gerek Yoktur"]
[43,null,null,null,null,1,1,1,"Çok Düşük","Devretmek","Gerek Yoktur",null,null,null,null,null,1,1,1,"Çok Düşük","Devretmek","Gerek Yoktur"]
[44,null,null,null,null,1,1,1,"Çok Düşük","Devretmek","Gerek Yoktur",null,null,null,null,null,1,1,1,"Çok Düşük","Devretmek","Gerek Yoktur"]
[45,null,null,null,null,1,1,1,"Çok Düşük","Devretmek","Gerek Yoktur",null,null,null,null,null,1,1,1,"Çok Düşük","Devretmek","Gerek Yoktur"]
[46,null,null,null,null,1,1,1,"Çok Düşük","Devretmek","Gerek Yoktur",null,null,null,null,null,1,1,1,"Çok Düşük","Devretmek","Gerek Yoktur"]
[47,null,null,null,null,1,1,1,"Çok Düşük","Devretmek","Gerek Yoktur",null,null,null,null,null,1,1,1,"Çok Düşük","Devretmek","Gerek Yoktur"]
[48,null,null,null,null,1,1,1,"Çok Düşük","Devretmek","Gerek Yoktur",null,null,null,null,null,1,1,1,"Çok Düşük","Devretmek","Gerek Yoktur"]
[49,null,null,null,null,1,1,1,"Çok Düşük","Devretmek","Gerek Yoktur",null,null,null,null,null,1,1,1,"Çok Düşük","Devretmek","Gerek Yoktur"]
[50,null,null,null,null,1,1,1,"Çok Düşük","Devretmek","Gerek Yoktur",null,null,null,null,null,1,1,1,"Çok Düşük","Devretmek","Gerek Yoktur"]
[51,null,null,null,null,1,1,1,"Çok Düşük","Devretmek","Gerek Yoktur",null,null,null,null,null,1,1,1,"Çok Düşük","Devretmek","Gerek Yoktur"]
[52,null,null,null,null,1,1,1,"Çok Düşük","Devretmek","Gerek Yoktur",null,null,null,null,null,1,1,1,"Çok Düşük","Devretmek","Gerek Yoktur"]
[53,null,null,null,null,1,1,1,"Çok Düşük","Devretmek","Gerek Yoktur",null,null,null,null,null,1,1,1,"Çok Düşük","Devretmek","Gerek Yoktur"]
[54,null,null,null,null,1,1,1,"Çok Düşük","Devretmek","Gerek Yoktur",null,null,null,null,null,1,1,1,"Çok Düşük","Devretmek","Gerek Yoktur"]
[55,null,null,null,null,1,1,1,"Çok Düşük","Devretmek","Gerek Yoktur",null,null,null,null,null,1,1,1,"Çok Düşük","Devretmek","Gerek Yoktur"]
[56,null,null,null,null,1,1,1,"Çok Düşük","Devretmek","Gerek Yoktur",null,null,null,null,null,1,1,1,"Çok Düşük","Devretmek","Gerek Yoktur"]
[57,null,null,null,null,1,1,1,"Çok Düşük","Devretmek","Gerek Yoktur",null,null,null,null,null,1,1,1,"Çok Düşük","Devretmek","Gerek Yoktur"]
[58,null,null,null,null,1,1,1,"Çok Düşük","Devretmek","Gerek Yoktur",null,null,null,null,null,1,1,1,"Çok Düşük","Devretmek","Gerek Yoktur"]
[59,null,null,null,null,1,1,1,"Çok Düşük","Devretmek","Gerek Yoktur",null,null,null,null,null,1,1,1,"Çok Düşük","Devretmek","Gerek Yoktur"]
[60,null,null,null,null,1,1,1,"Çok Düşük","Devretmek","Gerek Yoktur",null,null,null,null,null,1,1,1,"Çok Düşük","Devretmek","Gerek Yoktur"]
[61,null,null,null,null,1,1,1,"Çok Düşük","Devretmek","Gerek Yoktur",null,null,null,null,null,1,1,1,"Çok Düşük","Devretmek","Gerek Yoktur"]
[62,null,null,null,null,1,1,1,"Çok Düşük","Devretmek","Gerek Yoktur",null,null,null,null,null,1,1,1,"Çok Düşük","Devretmek","Gerek Yoktur"]
[63,null,null,null,null,1,1,1,"Çok Düşük","Devretmek","Gerek Yoktur",null,null,null,null,null,1,1,1,"Çok Düşük","Devretmek","Gerek Yoktur"]
[64,null,null,null,null,1,1,1,"Çok Düşük","Devretmek","Gerek Yoktur",null,null,null,null,null,1,1,1,"Çok Düşük","Devretmek","Gerek Yoktur"]
[65,null,null,null,null,1,1,1,{"$f":"IF(H69<=4,\"Çok Düşük\",(IF(H69<=8,\"Düşük\",(IF(H69<=14,\"Orta\",(IF(H69<=19,\"Yüksek\",(IF(H69<=25,\"Çok Yüksek\",)))))))))","v":"Çok Düşük"},"Devretmek","Gerek Yoktur",null,null,null,null,null,1,1,1,{"$f":"IF(S69<=4,\"Çok Düşük\",(IF(S69<=8,\"Düşük\",(IF(S69<=14,\"Orta\",(IF(S69<=19,\"Yüksek\",(IF(S69<=25,\"Çok Yüksek\",)))))))))","v":"Çok Düşük"},"Devretmek","Gerek Yoktur"]
[66,null,null,null,null,1,1,1,"Çok Düşük","Devretmek","Gerek Yoktur",null,null,null,null,null,1,1,1,"Çok Düşük","Devretmek","Gerek Yoktur"]
[67,null,null,null,null,1,1,1,"Çok Düşük","Devretmek","Gerek Yoktur",null,null,null,null,null,1,1,1,"Çok Düşük","Devretmek","Gerek Yoktur"]
[68,null,null,null,null,1,1,1,"Çok Düşük","Devretmek","Gerek Yoktur",null,null,null,null,null,1,1,1,"Çok Düşük","Devretmek","Gerek Yoktur"]
[69,null,null,null,null,1,1,1,"Çok Düşük","Devretmek","Gerek Yoktur",null,null,null,null,null,1,1,1,"Çok Düşük","Devretmek","Gerek Yoktur"]
[70,null,null,null,null,1,1,{"$f":"F74*G74","v":1},"Çok Düşük","Devretmek",{"$f":"IF(H74<=12,\"Gerek Yoktur\",(IF(H74<=25,\"Gereklidir\")))","v":"Gerek Yoktur"},null,null,null,null,null,1,1,{"$f":"Q74*R74","v":1},"Çok Düşük","Devretmek",{"$f":"IF(S74<=12,\"Gerek Yoktur\",(IF(S74<=25,\"Gereklidir\")))","v":"Gerek Yoktur"}]
[71,null,null,null,null,1,1,1,"Çok Düşük","Devretmek","Gerek Yoktur",null,null,null,null,null,1,1,1,"Çok Düşük","Devretmek","Gerek Yoktur"]
[72,null,null,null,null,1,1,1,"Çok Düşük","Devretmek","Gerek Yoktur",null,null,null,null,null,1,1,1,"Çok Düşük","Devretmek","Gerek Yoktur"]
[73,null,null,null,null,1,1,1,"Çok Düşük","Devretmek","Gerek Yoktur",null,null,null,null,null,1,1,1,"Çok Düşük","Devretmek","Gerek Yoktur"]
[74,null,null,null,null,1,1,1,"Çok Düşük","Devretmek","Gerek Yoktur",null,null,null,null,null,1,1,1,"Çok Düşük","Devretmek","Gerek Yoktur"]
[75,null,null,null,null,1,1,1,"Çok Düşük","Devretmek","Gerek Yoktur",null,null,null,null,null,1,1,1,"Çok Düşük","Devretmek","Gerek Yoktur"]
[76,null,null,null,null,1,1,1,"Çok Düşük","Devretmek","Gerek Yoktur",null,null,null,null,null,1,1,1,"Çok Düşük","Devretmek","Gerek Yoktur"]
[77,null,null,null,null,1,1,1,"Çok Düşük","Devretmek","Gerek Yoktur",null,null,null,null,null,1,1,1,"Çok Düşük","Devretmek","Gerek Yoktur"]
[78,null,null,null,null,1,1,1,"Çok Düşük","Devretmek","Gerek Yoktur",null,null,null,null,null,1,1,1,"Çok Düşük","Devretmek","Gerek Yoktur"]
[79,null,null,null,null,1,1,1,"Çok Düşük","Devretmek","Gerek Yoktur",null,null,null,null,null,1,1,1,"Çok Düşük","Devretmek","Gerek Yoktur"]
[80,null,null,null,null,1,1,1,"Çok Düşük","Devretmek","Gerek Yoktur",null,null,null,null,null,1,1,1,"Çok Düşük","Devretmek","Gerek Yoktur"]
[81,null,null,null,null,1,1,1,"Çok Düşük","Devretmek","Gerek Yoktur",null,null,null,null,null,1,1,1,"Çok Düşük","Devretmek","Gerek Yoktur"]
[82,null,null,null,null,1,1,1,"Çok Düşük","Devretmek","Gerek Yoktur",null,null,null,null,null,1,1,1,"Çok Düşük","Devretmek","Gerek Yoktur"]
[83,null,null,null,null,1,1,1,"Çok Düşük","Devretmek","Gerek Yoktur",null,null,null,null,null,1,1,1,"Çok Düşük","Devretmek","Gerek Yoktur"]
[84,null,null,null,null,1,1,1,"Çok Düşük","Devretmek","Gerek Yoktur",null,null,null,null,null,1,1,1,"Çok Düşük","Devretmek","Gerek Yoktur"]
[85,null,null,null,null,1,1,1,"Çok Düşük","Devretmek","Gerek Yoktur",null,null,null,null,null,1,1,1,"Çok Düşük","Devretmek","Gerek Yoktur"]
[86,null,null,null,null,1,1,1,"Çok Düşük","Devretmek","Gerek Yoktur",null,null,null,null,null,1,1,1,"Çok Düşük","Devretmek","Gerek Yoktur"]
[87,null,null,null,null,1,1,1,"Çok Düşük","Devretmek","Gerek Yoktur",null,null,null,null,null,1,1,1,"Çok Düşük","Devretmek","Gerek Yoktur"]
[88,null,null,null,null,1,1,1,"Çok Düşük","Devretmek","Gerek Yoktur",null,null,null,null,null,1,1,1,"Çok Düşük","Devretmek","Gerek Yoktur"]
[89,null,null,null,null,1,1,1,"Çok Düşük","Devretmek","Gerek Yoktur",null,null,null,null,null,1,1,1,"Çok Düşük","Devretmek","Gerek Yoktur"]
[90,null,null,null,null,1,1,1,"Çok Düşük","Devretmek","Gerek Yoktur",null,null,null,null,null,1,1,1,"Çok Düşük","Devretmek","Gerek Yoktur"]
[91,null,null,null,null,1,1,1,"Çok Düşük","Devretmek","Gerek Yoktur",null,null,null,null,null,1,1,1,"Çok Düşük","Devretmek","Gerek Yoktur"]
[92,null,null,null,null,1,1,1,"Çok Düşük","Devretmek","Gerek Yoktur",null,null,null,null,null,1,1,1,"Çok Düşük","Devretmek","Gerek Yoktur"]
[93,null,null,null,null,1,1,1,"Çok Düşük","Devretmek","Gerek Yoktur",null,null,null,null,null,1,1,1,"Çok Düşük","Devretmek","Gerek Yoktur"]
[94,null,null,null,null,1,1,1,"Çok Düşük","Devretmek","Gerek Yoktur",null,null,null,null,null,1,1,1,"Çok Düşük","Devretmek","Gerek Yoktur"]
[95,null,null,null,null,1,1,1,"Çok Düşük","Devretmek","Gerek Yoktur",null,null,null,null,null,1,1,1,"Çok Düşük","Devretmek","Gerek Yoktur"]
[96,null,null,null,null,1,1,1,"Çok Düşük","Devretmek","Gerek Yoktur",null,null,null,null,null,1,1,1,"Çok Düşük","Devretmek","Gerek Yoktur"]
[97,null,null,null,null,1,1,1,"Çok Düşük","Devretmek","Gerek Yoktur",null,null,null,null,null,1,1,1,"Çok Düşük","Devretmek","Gerek Yoktur"]
[98,null,null,null,null,1,1,1,"Çok Düşük","Devretmek","Gerek Yoktur",null,null,null,null,null,1,1,1,"Çok Düşük","Devretmek","Gerek Yoktur"]
[99,null,null,null,null,1,1,1,"Çok Düşük","Devretmek","Gerek Yoktur",null,null,null,null,null,1,1,1,"Çok Düşük","Devretmek","Gerek Yoktur"]
[100,null,null,null,null,1,1,1,"Çok Düşük","Devretmek","Gerek Yoktur",null,null,null,null,null,1,1,1,"Çok Düşük","Devretmek","Gerek Yoktur"]
[101,null,null,null,null,1,1,1,"Çok Düşük","Devretmek","Gerek Yoktur",null,null,null,null,null,1,1,1,"Çok Düşük","Devretmek","Gerek Yoktur"]
[102,null,null,null,null,1,1,1,"Çok Düşük","Devretmek","Gerek Yoktur",null,null,null,null,null,1,1,1,"Çok Düşük","Devretmek","Gerek Yoktur"]
[103,null,null,null,null,1,1,1,"Çok Düşük","Devretmek","Gerek Yoktur",null,null,null,null,null,1,1,1,"Çok Düşük","Devretmek","Gerek Yoktur"]
[104,null,null,null,null,1,1,1,"Çok Düşük","Devretmek","Gerek Yoktur",null,null,null,null,null,1,1,1,"Çok Düşük","Devretmek","Gerek Yoktur"]
[105,null,null,null,null,1,1,1,"Çok Düşük","Devretmek","Gerek Yoktur",null,null,null,null,null,1,1,1,"Çok Düşük","Devretmek","Gerek Yoktur"]
[106,null,null,null,null,1,1,1,"Çok Düşük","Devretmek","Gerek Yoktur",null,null,null,null,null,1,1,1,"Çok Düşük","Devretmek","Gerek Yoktur"]
[107,null,null,null,null,1,1,1,"Çok Düşük","Devretmek","Gerek Yoktur",null,null,null,null,null,1,1,1,"Çok Düşük","Devretmek","Gerek Yoktur"]
[108,null,null,null,null,1,1,1,"Çok Düşük","Devretmek","Gerek Yoktur",null,null,null,null,null,1,1,1,"Çok Düşük","Devretmek","Gerek Yoktur"]
[109,null,null,null,null,1,1,1,"Çok Düşük","Devretmek","Gerek Yoktur",null,null,null,null,null,1,1,1,"Çok Düşük","Devretmek","Gerek Yoktur"]
[110,null,null,null,null,1,1,1,"Çok Düşük","Devretmek","Gerek Yoktur",null,null,null,null,null,1,1,1,"Çok Düşük","Devretmek","Gerek Yoktur"]
[111,null,null,null,null,1,1,1,"Çok Düşük","Devretmek","Gerek Yoktur",null,null,null,null,null,1,1,1,"Çok Düşük","Devretmek","Gerek Yoktur"]
[112,null,null,null,null,1,1,1,"Çok Düşük","Devretmek","Gerek Yoktur",null,null,null,null,null,1,1,1,"Çok Düşük","Devretmek","Gerek Yoktur"]
[113,null,null,null,null,1,1,1,"Çok Düşük","Devretmek","Gerek Yoktur",null,null,null,null,null,1,1,1,"Çok Düşük","Devretmek","Gerek Yoktur"]
[114,null,null,null,null,1,1,1,"Çok Düşük","Devretmek","Gerek Yoktur",null,null,null,null,null,1,1,1,"Çok Düşük","Devretmek","Gerek Yoktur"]
[115,null,null,null,null,1,1,1,"Çok Düşük","Devretmek","Gerek Yoktur",null,null,null,null,null,1,1,1,"Çok Düşük","Devretmek","Gerek Yoktur"]
[116,null,null,null,null,1,1,1,"Çok Düşük","Devretmek","Gerek Yoktur",null,null,null,null,null,1,1,1,"Çok Düşük","Devretmek","Gerek Yoktur"]
[117,null,null,null,null,1,1,1,"Çok Düşük","Devretmek","Gerek Yoktur",null,null,null,null,null,1,1,1,"Çok Düşük","Devretmek","Gerek Yoktur"]
[118,null,null,null,null,1,1,1,"Çok Düşük","Devretmek","Gerek Yoktur",null,null,null,null,null,1,1,1,"Çok Düşük","Devretmek","Gerek Yoktur"]
[119,null,null,null,null,1,1,1,"Çok Düşük","Devretmek","Gerek Yoktur",null,null,null,null,null,1,1,1,"Çok Düşük","Devretmek","Gerek Yoktur"]
[120,null,null,null,null,1,1,1,"Çok Düşük","Devretmek","Gerek Yoktur",null,null,null,null,null,1,1,1,"Çok Düşük","Devretmek","Gerek Yoktur"]
[121,null,null,null,null,1,1,1,"Çok Düşük","Devretmek","Gerek Yoktur",null,null,null,null,null,1,1,1,"Çok Düşük","Devretmek","Gerek Yoktur"]
[122,null,null,null,null,1,1,1,"Çok Düşük","Devretmek","Gerek Yoktur",null,null,null,null,null,1,1,1,"Çok Düşük","Devretmek","Gerek Yoktur"]
[123,null,null,null,null,1,1,1,"Çok Düşük","Devretmek","Gerek Yoktur",null,null,null,null,null,1,1,1,"Çok Düşük","Devretmek","Gerek Yoktur"]
[124,null,null,null,null,1,1,1,"Çok Düşük","Devretmek","Gerek Yoktur",null,null,null,null,null,1,1,1,"Çok Düşük","Devretmek","Gerek Yoktur"]
[125,null,null,null,null,1,1,1,"Çok Düşük","Devretmek","Gerek Yoktur",null,null,null,null,null,1,1,1,"Çok Düşük","Devretmek","Gerek Yoktur"]
[126,null,null,null,null,1,1,1,"Çok Düşük","Devretmek","Gerek Yoktur",null,null,null,null,null,1,1,1,"Çok Düşük","Devretmek","Gerek Yoktur"]
[127,null,null,null,null,1,1,1,"Çok Düşük","Devretmek","Gerek Yoktur",null,null,null,null,null,1,1,1,"Çok Düşük","Devretmek","Gerek Yoktur"]
[128,null,null,null,null,1,1,1,"Çok Düşük","Devretmek","Gerek Yoktur",null,null,null,null,null,1,1,1,"Çok Düşük","Devretmek","Gerek Yoktur"]
[129,null,null,null,null,1,1,1,{"$f":"IF(H133<=4,\"Çok Düşük\",(IF(H133<=8,\"Düşük\",(IF(H133<=14,\"Orta\",(IF(H133<=19,\"Yüksek\",(IF(H133<=25,\"Çok Yüksek\",)))))))))","v":"Çok Düşük"},"Devretmek","Gerek Yoktur",null,null,null,null,null,1,1,1,{"$f":"IF(S133<=4,\"Çok Düşük\",(IF(S133<=8,\"Düşük\",(IF(S133<=14,\"Orta\",(IF(S133<=19,\"Yüksek\",(IF(S133<=25,\"Çok Yüksek\",)))))))))","v":"Çok Düşük"},"Devretmek","Gerek Yoktur"]
[130,null,null,null,null,1,1,1,"Çok Düşük","Devretmek","Gerek Yoktur",null,null,null,null,null,1,1,1,"Çok Düşük","Devretmek","Gerek Yoktur"]
[131,null,null,null,null,1,1,1,"Çok Düşük","Devretmek","Gerek Yoktur",null,null,null,null,null,1,1,1,"Çok Düşük","Devretmek","Gerek Yoktur"]
[132,null,null,null,null,1,1,1,"Çok Düşük","Devretmek","Gerek Yoktur",null,null,null,null,null,1,1,1,"Çok Düşük","Devretmek","Gerek Yoktur"]
[133,null,null,null,null,1,1,1,"Çok Düşük","Devretmek","Gerek Yoktur",null,null,null,null,null,1,1,1,"Çok Düşük","Devretmek","Gerek Yoktur"]
[134,null,null,null,null,1,1,{"$f":"F138*G138","v":1},"Çok Düşük","Devretmek",{"$f":"IF(H138<=12,\"Gerek Yoktur\",(IF(H138<=25,\"Gereklidir\")))","v":"Gerek Yoktur"},null,null,null,null,null,1,1,{"$f":"Q138*R138","v":1},"Çok Düşük","Devretmek",{"$f":"IF(S138<=12,\"Gerek Yoktur\",(IF(S138<=25,\"Gereklidir\")))","v":"Gerek Yoktur"}]
[135,null,null,null,null,1,1,1,"Çok Düşük","Devretmek","Gerek Yoktur",null,null,null,null,null,1,1,1,"Çok Düşük","Devretmek","Gerek Yoktur"]
[136,null,null,null,null,1,1,1,"Çok Düşük","Devretmek","Gerek Yoktur",null,null,null,null,null,1,1,1,"Çok Düşük","Devretmek","Gerek Yoktur"]
[137,null,null,null,null,1,1,1,"Çok Düşük","Devretmek","Gerek Yoktur",null,null,null,null,null,1,1,1,"Çok Düşük","Devretmek","Gerek Yoktur"]
[138,null,null,null,null,1,1,1,"Çok Düşük","Devretmek","Gerek Yoktur",null,null,null,null,null,1,1,1,"Çok Düşük","Devretmek","Gerek Yoktur"]
[139,null,null,null,null,1,1,1,"Çok Düşük","Devretmek","Gerek Yoktur",null,null,null,null,null,1,1,1,"Çok Düşük","Devretmek","Gerek Yoktur"]
[140,null,null,null,null,1,1,1,"Çok Düşük","Devretmek","Gerek Yoktur",null,null,null,null,null,1,1,1,"Çok Düşük","Devretmek","Gerek Yoktur"]
[141,null,null,null,null,1,1,1,"Çok Düşük","Devretmek","Gerek Yoktur",null,null,null,null,null,1,1,1,"Çok Düşük","Devretmek","Gerek Yoktur"]
[142,null,null,null,null,1,1,1,"Çok Düşük","Devretmek","Gerek Yoktur",null,null,null,null,null,1,1,1,"Çok Düşük","Devretmek","Gerek Yoktur"]
[143,null,null,null,null,1,1,1,"Çok Düşük","Devretmek","Gerek Yoktur",null,null,null,null,null,1,1,1,"Çok Düşük","Devretmek","Gerek Yoktur"]
[144,null,null,null,null,1,1,1,"Çok Düşük","Devretmek","Gerek Yoktur",null,null,null,null,null,1,1,1,"Çok Düşük","Devretmek","Gerek Yoktur"]
[145,null,null,null,null,1,1,1,"Çok Düşük","Devretmek","Gerek Yoktur",null,null,null,null,null,1,1,1,"Çok Düşük","Devretmek","Gerek Yoktur"]
[146,null,null,null,null,1,1,1,"Çok Düşük","Devretmek","Gerek Yoktur",null,null,null,null,null,1,1,1,"Çok Düşük","Devretmek","Gerek Yoktur"]
[147,null,null,null,null,1,1,1,"Çok Düşük","Devretmek","Gerek Yoktur",null,null,null,null,null,1,1,1,"Çok Düşük","Devretmek","Gerek Yoktur"]
[148,null,null,null,null,1,1,1,"Çok Düşük","Devretmek","Gerek Yoktur",null,null,null,null,null,1,1,1,"Çok Düşük","Devretmek","Gerek Yoktur"]
[149,null,null,null,null,1,1,1,"Çok Düşük","Devretmek","Gerek Yoktur",null,null,null,null,null,1,1,1,"Çok Düşük","Devretmek","Gerek Yoktur"]
[150,null,null,null,null,1,1,1,"Çok Düşük","Devretmek","Gerek Yoktur",null,null,null,null,null,1,1,1,"Çok Düşük","Devretmek","Gerek Yoktur"]

{"sheet":"AR-GE","index":2,"n_rows":154,"n_cols":22,"rows_kept":154,"cut":false,"hidden":false,"merged":[[2,16,2,21],[0,2,1,21],[0,0,1,1],[2,0,3,0],[2,1,3,1],[2,3,2,10],[2,11,2,15]]}
[{"$error":"#VALUE!"},null,"ARAŞTIRMA VE GELİŞTİRME SÜRECİ\nRİSK ANALİZİ"]
[]
["SIRA","İLGİLİ BİRİM","Doküman No: FRM-0348\nYayın Tarihi: 03.10.2024\nRevizyon Tarihi: 03.10.2024\nRevizyon No: 00","A (Mevcut Durum)",null,null,null,null,null,null,null,"B (Önlemlerin Alınmasından Sonra Yapılan Risk Değerlendirmesi)",null,null,null,null,"C (Sonuç)"]
[null,null,"Risk Tanımı","Risk Giderici Mevcut Faaliyet","İlgili Belge","Etki","Olasılık","Puan","Risk Derecesi","Karar","İyileştirme","Risk Giderme Yöntemi (Düzeltici ve Önleyici Kontrol Tedbirleri)","Sorumlu (Birim/Kişi)","Termin \n(Bitiş Tarihi)","Kaynak","Sonuçlar nasıl değerlendirilecek?","Etki","Olasılık","Puan","Risk Derecesi","Karar","İyileştirme"]
[1,null,null,null,null,1,1,{"$f":"F5*G5","v":1},{"$f":"IF(H5<=4,\"Çok Düşük\",(IF(H5<=8,\"Düşük\",(IF(H5<=14,\"Orta\",(IF(H5<=19,\"Yüksek\",(IF(H5<=25,\"Çok Yüksek\",)))))))))","v":"Çok Düşük"},"Devretmek",{"$f":"IF(H5<=12,\"Gerek Yoktur\",(IF(H5<=25,\"Gereklidir\")))","v":"Gerek Yoktur"},null,null,null,null,null,1,1,{"$f":"Q5*R5","v":1},{"$f":"IF(S5<=4,\"Çok Düşük\",(IF(S5<=8,\"Düşük\",(IF(S5<=14,\"Orta\",(IF(S5<=19,\"Yüksek\",(IF(S5<=25,\"Çok Yüksek\",)))))))))","v":"Çok Düşük"},"Kabullenmek",{"$f":"IF(S5<=12,\"Gerek Yoktur\",(IF(S5<=25,\"Gereklidir\")))","v":"Gerek Yoktur"}]
[2,null,null,null,null,1,1,{"$f":"F6*G6","v":1},{"$f":"IF(H6<=4,\"Çok Düşük\",(IF(H6<=8,\"Düşük\",(IF(H6<=14,\"Orta\",(IF(H6<=19,\"Yüksek\",(IF(H6<=25,\"Çok Yüksek\",)))))))))","v":"Çok Düşük"},"Devretmek",{"$f":"IF(H6<=12,\"Gerek Yoktur\",(IF(H6<=25,\"Gereklidir\")))","v":"Gerek Yoktur"},null,null,null,null,null,1,1,{"$f":"Q6*R6","v":1},{"$f":"IF(S6<=4,\"Çok Düşük\",(IF(S6<=8,\"Düşük\",(IF(S6<=14,\"Orta\",(IF(S6<=19,\"Yüksek\",(IF(S6<=25,\"Çok Yüksek\",)))))))))","v":"Çok Düşük"},"Devretmek",{"$f":"IF(S6<=12,\"Gerek Yoktur\",(IF(S6<=25,\"Gereklidir\")))","v":"Gerek Yoktur"}]
[3,null,null,null,null,1,1,1,"Çok Düşük","Devretmek","Gerek Yoktur",null,null,null,null,null,1,1,1,"Çok Düşük","Devretmek","Gerek Yoktur"]
[4,null,null,null,null,1,1,1,"Çok Düşük","Devretmek","Gerek Yoktur",null,null,null,null,null,1,1,1,"Çok Düşük","Devretmek","Gerek Yoktur"]
[5,null,null,null,null,1,1,{"$f":"F9*G9","v":1},{"$f":"IF(H9<=4,\"Çok Düşük\",(IF(H9<=8,\"Düşük\",(IF(H9<=14,\"Orta\",(IF(H9<=19,\"Yüksek\",(IF(H9<=25,\"Çok Yüksek\",)))))))))","v":"Çok Düşük"},"Devretmek",{"$f":"IF(H9<=12,\"Gerek Yoktur\",(IF(H9<=25,\"Gereklidir\")))","v":"Gerek Yoktur"},null,null,null,null,null,1,1,{"$f":"Q9*R9","v":1},{"$f":"IF(S9<=4,\"Çok Düşük\",(IF(S9<=8,\"Düşük\",(IF(S9<=14,\"Orta\",(IF(S9<=19,\"Yüksek\",(IF(S9<=25,\"Çok Yüksek\",)))))))))","v":"Çok Düşük"},"Devretmek",{"$f":"IF(S9<=12,\"Gerek Yoktur\",(IF(S9<=25,\"Gereklidir\")))","v":"Gerek Yoktur"}]
[6,null,null,null,null,1,1,{"$f":"F10*G10","v":1},"Çok Düşük","Devretmek",{"$f":"IF(H10<=12,\"Gerek Yoktur\",(IF(H10<=25,\"Gereklidir\")))","v":"Gerek Yoktur"},null,null,null,null,null,1,1,{"$f":"Q10*R10","v":1},"Çok Düşük","Devretmek",{"$f":"IF(S10<=12,\"Gerek Yoktur\",(IF(S10<=25,\"Gereklidir\")))","v":"Gerek Yoktur"}]
[7,null,null,null,null,1,1,1,"Çok Düşük","Devretmek","Gerek Yoktur",null,null,null,null,null,1,1,1,"Çok Düşük","Devretmek","Gerek Yoktur"]
[8,null,null,null,null,1,1,1,"Çok Düşük","Devretmek","Gerek Yoktur",null,null,null,null,null,1,1,1,"Çok Düşük","Devretmek","Gerek Yoktur"]
[9,null,null,null,null,1,1,1,"Çok Düşük","Devretmek","Gerek Yoktur",null,null,null,null,null,1,1,1,"Çok Düşük","Devretmek","Gerek Yoktur"]
[10,null,null,null,null,1,1,1,"Çok Düşük","Devretmek","Gerek Yoktur",null,null,null,null,null,1,1,1,"Çok Düşük","Devretmek","Gerek Yoktur"]
[11,null,null,null,null,1,1,1,"Çok Düşük","Devretmek","Gerek Yoktur",null,null,null,null,null,1,1,1,"Çok Düşük","Devretmek","Gerek Yoktur"]
[12,null,null,null,null,1,1,1,"Çok Düşük","Devretmek","Gerek Yoktur",null,null,null,null,null,1,1,1,"Çok Düşük","Devretmek","Gerek Yoktur"]
[13,null,null,null,null,1,1,1,"Çok Düşük","Devretmek","Gerek Yoktur",null,null,null,null,null,1,1,1,"Çok Düşük","Devretmek","Gerek Yoktur"]
[14,null,null,null,null,1,1,1,"Çok Düşük","Devretmek","Gerek Yoktur",null,null,null,null,null,1,1,1,"Çok Düşük","Devretmek","Gerek Yoktur"]
[15,null,null,null,null,1,1,1,"Çok Düşük","Devretmek","Gerek Yoktur",null,null,null,null,null,1,1,1,"Çok Düşük","Devretmek","Gerek Yoktur"]
[16,null,null,null,null,1,1,1,"Çok Düşük","Devretmek","Gerek Yoktur",null,null,null,null,null,1,1,1,"Çok Düşük","Devretmek","Gerek Yoktur"]
[17,null,null,null,null,1,1,1,"Çok Düşük","Devretmek","Gerek Yoktur",null,null,null,null,null,1,1,1,"Çok Düşük","Devretmek","Gerek Yoktur"]
[18,null,null,null,null,1,1,1,"Çok Düşük","Devretmek","Gerek Yoktur",null,null,null,null,null,1,1,1,"Çok Düşük","Devretmek","Gerek Yoktur"]
[19,null,null,null,null,1,1,1,"Çok Düşük","Devretmek","Gerek Yoktur",null,null,null,null,null,1,1,1,"Çok Düşük","Devretmek","Gerek Yoktur"]
[20,null,null,null,null,1,1,1,"Çok Düşük","Devretmek","Gerek Yoktur",null,null,null,null,null,1,1,1,"Çok Düşük","Devretmek","Gerek Yoktur"]
[21,null,null,null,null,1,1,1,"Çok Düşük","Devretmek","Gerek Yoktur",null,null,null,null,null,1,1,1,"Çok Düşük","Devretmek","Gerek Yoktur"]
[22,null,null,null,null,1,1,1,"Çok Düşük","Devretmek","Gerek Yoktur",null,null,null,null,null,1,1,1,"Çok Düşük","Devretmek","Gerek Yoktur"]
[23,null,null,null,null,1,1,1,"Çok Düşük","Devretmek","Gerek Yoktur",null,null,null,null,null,1,1,1,"Çok Düşük","Devretmek","Gerek Yoktur"]
[24,null,null,null,null,1,1,1,"Çok Düşük","Devretmek","Gerek Yoktur",null,null,null,null,null,1,1,1,"Çok Düşük","Devretmek","Gerek Yoktur"]
[25,null,null,null,null,1,1,1,"Çok Düşük","Devretmek","Gerek Yoktur",null,null,null,null,null,1,1,1,"Çok Düşük","Devretmek","Gerek Yoktur"]
[26,null,null,null,null,1,1,1,"Çok Düşük","Devretmek","Gerek Yoktur",null,null,null,null,null,1,1,1,"Çok Düşük","Devretmek","Gerek Yoktur"]
[27,null,null,null,null,1,1,1,"Çok Düşük","Devretmek","Gerek Yoktur",null,null,null,null,null,1,1,1,"Çok Düşük","Devretmek","Gerek Yoktur"]
[28,null,null,null,null,1,1,1,"Çok Düşük","Devretmek","Gerek Yoktur",null,null,null,null,null,1,1,1,"Çok Düşük","Devretmek","Gerek Yoktur"]
[29,null,null,null,null,1,1,1,"Çok Düşük","Devretmek","Gerek Yoktur",null,null,null,null,null,1,1,1,"Çok Düşük","Devretmek","Gerek Yoktur"]
[30,null,null,null,null,1,1,1,"Çok Düşük","Devretmek","Gerek Yoktur",null,null,null,null,null,1,1,1,"Çok Düşük","Devretmek","Gerek Yoktur"]
[31,null,null,null,null,1,1,1,"Çok Düşük","Devretmek","Gerek Yoktur",null,null,null,null,null,1,1,1,"Çok Düşük","Devretmek","Gerek Yoktur"]
[32,null,null,null,null,1,1,1,"Çok Düşük","Devretmek","Gerek Yoktur",null,null,null,null,null,1,1,1,"Çok Düşük","Devretmek","Gerek Yoktur"]
[33,null,null,null,null,1,1,1,"Çok Düşük","Devretmek","Gerek Yoktur",null,null,null,null,null,1,1,1,"Çok Düşük","Devretmek","Gerek Yoktur"]
[34,null,null,null,null,1,1,1,"Çok Düşük","Devretmek","Gerek Yoktur",null,null,null,null,null,1,1,1,"Çok Düşük","Devretmek","Gerek Yoktur"]
[35,null,null,null,null,1,1,1,"Çok Düşük","Devretmek","Gerek Yoktur",null,null,null,null,null,1,1,1,"Çok Düşük","Devretmek","Gerek Yoktur"]
[36,null,null,null,null,1,1,1,"Çok Düşük","Devretmek","Gerek Yoktur",null,null,null,null,null,1,1,1,"Çok Düşük","Devretmek","Gerek Yoktur"]
[37,null,null,null,null,1,1,1,"Çok Düşük","Devretmek","Gerek Yoktur",null,null,null,null,null,1,1,1,"Çok Düşük","Devretmek","Gerek Yoktur"]
[38,null,null,null,null,1,1,1,"Çok Düşük","Devretmek","Gerek Yoktur",null,null,null,null,null,1,1,1,"Çok Düşük","Devretmek","Gerek Yoktur"]
[39,null,null,null,null,1,1,1,"Çok Düşük","Devretmek","Gerek Yoktur",null,null,null,null,null,1,1,1,"Çok Düşük","Devretmek","Gerek Yoktur"]
[40,null,null,null,null,1,1,1,"Çok Düşük","Devretmek","Gerek Yoktur",null,null,null,null,null,1,1,1,"Çok Düşük","Devretmek","Gerek Yoktur"]
[41,null,null,null,null,1,1,1,"Çok Düşük","Devretmek","Gerek Yoktur",null,null,null,null,null,1,1,1,"Çok Düşük","Devretmek","Gerek Yoktur"]
[42,null,null,null,null,1,1,1,"Çok Düşük","Devretmek","Gerek Yoktur",null,null,null,null,null,1,1,1,"Çok Düşük","Devretmek","Gerek Yoktur"]
[43,null,null,null,null,1,1,1,"Çok Düşük","Devretmek","Gerek Yoktur",null,null,null,null,null,1,1,1,"Çok Düşük","Devretmek","Gerek Yoktur"]
[44,null,null,null,null,1,1,1,"Çok Düşük","Devretmek","Gerek Yoktur",null,null,null,null,null,1,1,1,"Çok Düşük","Devretmek","Gerek Yoktur"]
[45,null,null,null,null,1,1,1,"Çok Düşük","Devretmek","Gerek Yoktur",null,null,null,null,null,1,1,1,"Çok Düşük","Devretmek","Gerek Yoktur"]
[46,null,null,null,null,1,1,1,"Çok Düşük","Devretmek","Gerek Yoktur",null,null,null,null,null,1,1,1,"Çok Düşük","Devretmek","Gerek Yoktur"]
[47,null,null,null,null,1,1,1,"Çok Düşük","Devretmek","Gerek Yoktur",null,null,null,null,null,1,1,1,"Çok Düşük","Devretmek","Gerek Yoktur"]
[48,null,null,null,null,1,1,1,"Çok Düşük","Devretmek","Gerek Yoktur",null,null,null,null,null,1,1,1,"Çok Düşük","Devretmek","Gerek Yoktur"]
[49,null,null,null,null,1,1,1,"Çok Düşük","Devretmek","Gerek Yoktur",null,null,null,null,null,1,1,1,"Çok Düşük","Devretmek","Gerek Yoktur"]
[50,null,null,null,null,1,1,1,"Çok Düşük","Devretmek","Gerek Yoktur",null,null,null,null,null,1,1,1,"Çok Düşük","Devretmek","Gerek Yoktur"]
[51,null,null,null,null,1,1,1,"Çok Düşük","Devretmek","Gerek Yoktur",null,null,null,null,null,1,1,1,"Çok Düşük","Devretmek","Gerek Yoktur"]
[52,null,null,null,null,1,1,1,"Çok Düşük","Devretmek","Gerek Yoktur",null,null,null,null,null,1,1,1,"Çok Düşük","Devretmek","Gerek Yoktur"]
[53,null,null,null,null,1,1,1,"Çok Düşük","Devretmek","Gerek Yoktur",null,null,null,null,null,1,1,1,"Çok Düşük","Devretmek","Gerek Yoktur"]
[54,null,null,null,null,1,1,1,"Çok Düşük","Devretmek","Gerek Yoktur",null,null,null,null,null,1,1,1,"Çok Düşük","Devretmek","Gerek Yoktur"]
[55,null,null,null,null,1,1,1,"Çok Düşük","Devretmek","Gerek Yoktur",null,null,null,null,null,1,1,1,"Çok Düşük","Devretmek","Gerek Yoktur"]
[56,null,null,null,null,1,1,1,"Çok Düşük","Devretmek","Gerek Yoktur",null,null,null,null,null,1,1,1,"Çok Düşük","Devretmek","Gerek Yoktur"]
[57,null,null,null,null,1,1,1,"Çok Düşük","Devretmek","Gerek Yoktur",null,null,null,null,null,1,1,1,"Çok Düşük","Devretmek","Gerek Yoktur"]
[58,null,null,null,null,1,1,1,"Çok Düşük","Devretmek","Gerek Yoktur",null,null,null,null,null,1,1,1,"Çok Düşük","Devretmek","Gerek Yoktur"]
[59,null,null,null,null,1,1,1,"Çok Düşük","Devretmek","Gerek Yoktur",null,null,null,null,null,1,1,1,"Çok Düşük","Devretmek","Gerek Yoktur"]
[60,null,null,null,null,1,1,1,"Çok Düşük","Devretmek","Gerek Yoktur",null,null,null,null,null,1,1,1,"Çok Düşük","Devretmek","Gerek Yoktur"]
[61,null,null,null,null,1,1,1,"Çok Düşük","Devretmek","Gerek Yoktur",null,null,null,null,null,1,1,1,"Çok Düşük","Devretmek","Gerek Yoktur"]
[62,null,null,null,null,1,1,1,"Çok Düşük","Devretmek","Gerek Yoktur",null,null,null,null,null,1,1,1,"Çok Düşük","Devretmek","Gerek Yoktur"]
[63,null,null,null,null,1,1,1,"Çok Düşük","Devretmek","Gerek Yoktur",null,null,null,null,null,1,1,1,"Çok Düşük","Devretmek","Gerek Yoktur"]
[64,null,null,null,null,1,1,1,"Çok Düşük","Devretmek","Gerek Yoktur",null,null,null,null,null,1,1,1,"Çok Düşük","Devretmek","Gerek Yoktur"]
[65,null,null,null,null,1,1,1,"Çok Düşük","Devretmek","Gerek Yoktur",null,null,null,null,null,1,1,1,"Çok Düşük","Devretmek","Gerek Yoktur"]
[66,null,null,null,null,1,1,1,{"$f":"IF(H70<=4,\"Çok Düşük\",(IF(H70<=8,\"Düşük\",(IF(H70<=14,\"Orta\",(IF(H70<=19,\"Yüksek\",(IF(H70<=25,\"Çok Yüksek\",)))))))))","v":"Çok Düşük"},"Devretmek","Gerek Yoktur",null,null,null,null,null,1,1,1,{"$f":"IF(S70<=4,\"Çok Düşük\",(IF(S70<=8,\"Düşük\",(IF(S70<=14,\"Orta\",(IF(S70<=19,\"Yüksek\",(IF(S70<=25,\"Çok Yüksek\",)))))))))","v":"Çok Düşük"},"Devretmek","Gerek Yoktur"]
[67,null,null,null,null,1,1,1,"Çok Düşük","Devretmek","Gerek Yoktur",null,null,null,null,null,1,1,1,"Çok Düşük","Devretmek","Gerek Yoktur"]
[68,null,null,null,null,1,1,1,"Çok Düşük","Devretmek","Gerek Yoktur",null,null,null,null,null,1,1,1,"Çok Düşük","Devretmek","Gerek Yoktur"]
[69,null,null,null,null,1,1,1,"Çok Düşük","Devretmek","Gerek Yoktur",null,null,null,null,null,1,1,1,"Çok Düşük","Devretmek","Gerek Yoktur"]
[70,null,null,null,null,1,1,{"$f":"F74*G74","v":1},"Çok Düşük","Devretmek",{"$f":"IF(H74<=12,\"Gerek Yoktur\",(IF(H74<=25,\"Gereklidir\")))","v":"Gerek Yoktur"},null,null,null,null,null,1,1,{"$f":"Q74*R74","v":1},"Çok Düşük","Devretmek",{"$f":"IF(S74<=12,\"Gerek Yoktur\",(IF(S74<=25,\"Gereklidir\")))","v":"Gerek Yoktur"}]
[71,null,null,null,null,1,1,1,"Çok Düşük","Devretmek","Gerek Yoktur",null,null,null,null,null,1,1,1,"Çok Düşük","Devretmek","Gerek Yoktur"]
[72,null,null,null,null,1,1,1,"Çok Düşük","Devretmek","Gerek Yoktur",null,null,null,null,null,1,1,1,"Çok Düşük","Devretmek","Gerek Yoktur"]
[73,null,null,null,null,1,1,1,"Çok Düşük","Devretmek","Gerek Yoktur",null,null,null,null,null,1,1,1,"Çok Düşük","Devretmek","Gerek Yoktur"]
[74,null,null,null,null,1,1,1,"Çok Düşük","Devretmek","Gerek Yoktur",null,null,null,null,null,1,1,1,"Çok Düşük","Devretmek","Gerek Yoktur"]
[75,null,null,null,null,1,1,1,"Çok Düşük","Devretmek","Gerek Yoktur",null,null,null,null,null,1,1,1,"Çok Düşük","Devretmek","Gerek Yoktur"]
[76,null,null,null,null,1,1,1,"Çok Düşük","Devretmek","Gerek Yoktur",null,null,null,null,null,1,1,1,"Çok Düşük","Devretmek","Gerek Yoktur"]
[77,null,null,null,null,1,1,1,"Çok Düşük","Devretmek","Gerek Yoktur",null,null,null,null,null,1,1,1,"Çok Düşük","Devretmek","Gerek Yoktur"]
[78,null,null,null,null,1,1,1,"Çok Düşük","Devretmek","Gerek Yoktur",null,null,null,null,null,1,1,1,"Çok Düşük","Devretmek","Gerek Yoktur"]
[79,null,null,null,null,1,1,1,"Çok Düşük","Devretmek","Gerek Yoktur",null,null,null,null,null,1,1,1,"Çok Düşük","Devretmek","Gerek Yoktur"]
[80,null,null,null,null,1,1,1,"Çok Düşük","Devretmek","Gerek Yoktur",null,null,null,null,null,1,1,1,"Çok Düşük","Devretmek","Gerek Yoktur"]
[81,null,null,null,null,1,1,1,"Çok Düşük","Devretmek","Gerek Yoktur",null,null,null,null,null,1,1,1,"Çok Düşük","Devretmek","Gerek Yoktur"]
[82,null,null,null,null,1,1,1,"Çok Düşük","Devretmek","Gerek Yoktur",null,null,null,null,null,1,1,1,"Çok Düşük","Devretmek","Gerek Yoktur"]
[83,null,null,null,null,1,1,1,"Çok Düşük","Devretmek","Gerek Yoktur",null,null,null,null,null,1,1,1,"Çok Düşük","Devretmek","Gerek Yoktur"]
[84,null,null,null,null,1,1,1,"Çok Düşük","Devretmek","Gerek Yoktur",null,null,null,null,null,1,1,1,"Çok Düşük","Devretmek","Gerek Yoktur"]
[85,null,null,null,null,1,1,1,"Çok Düşük","Devretmek","Gerek Yoktur",null,null,null,null,null,1,1,1,"Çok Düşük","Devretmek","Gerek Yoktur"]
[86,null,null,null,null,1,1,1,"Çok Düşük","Devretmek","Gerek Yoktur",null,null,null,null,null,1,1,1,"Çok Düşük","Devretmek","Gerek Yoktur"]
[87,null,null,null,null,1,1,1,"Çok Düşük","Devretmek","Gerek Yoktur",null,null,null,null,null,1,1,1,"Çok Düşük","Devretmek","Gerek Yoktur"]
[88,null,null,null,null,1,1,1,"Çok Düşük","Devretmek","Gerek Yoktur",null,null,null,null,null,1,1,1,"Çok Düşük","Devretmek","Gerek Yoktur"]
[89,null,null,null,null,1,1,1,"Çok Düşük","Devretmek","Gerek Yoktur",null,null,null,null,null,1,1,1,"Çok Düşük","Devretmek","Gerek Yoktur"]
[90,null,null,null,null,1,1,1,"Çok Düşük","Devretmek","Gerek Yoktur",null,null,null,null,null,1,1,1,"Çok Düşük","Devretmek","Gerek Yoktur"]
[91,null,null,null,null,1,1,1,"Çok Düşük","Devretmek","Gerek Yoktur",null,null,null,null,null,1,1,1,"Çok Düşük","Devretmek","Gerek Yoktur"]
[92,null,null,null,null,1,1,1,"Çok Düşük","Devretmek","Gerek Yoktur",null,null,null,null,null,1,1,1,"Çok Düşük","Devretmek","Gerek Yoktur"]
[93,null,null,null,null,1,1,1,"Çok Düşük","Devretmek","Gerek Yoktur",null,null,null,null,null,1,1,1,"Çok Düşük","Devretmek","Gerek Yoktur"]
[94,null,null,null,null,1,1,1,"Çok Düşük","Devretmek","Gerek Yoktur",null,null,null,null,null,1,1,1,"Çok Düşük","Devretmek","Gerek Yoktur"]
[95,null,null,null,null,1,1,1,"Çok Düşük","Devretmek","Gerek Yoktur",null,null,null,null,null,1,1,1,"Çok Düşük","Devretmek","Gerek Yoktur"]
[96,null,null,null,null,1,1,1,"Çok Düşük","Devretmek","Gerek Yoktur",null,null,null,null,null,1,1,1,"Çok Düşük","Devretmek","Gerek Yoktur"]
[97,null,null,null,null,1,1,1,"Çok Düşük","Devretmek","Gerek Yoktur",null,null,null,null,null,1,1,1,"Çok Düşük","Devretmek","Gerek Yoktur"]
[98,null,null,null,null,1,1,1,"Çok Düşük","Devretmek","Gerek Yoktur",null,null,null,null,null,1,1,1,"Çok Düşük","Devretmek","Gerek Yoktur"]
[99,null,null,null,null,1,1,1,"Çok Düşük","Devretmek","Gerek Yoktur",null,null,null,null,null,1,1,1,"Çok Düşük","Devretmek","Gerek Yoktur"]
[100,null,null,null,null,1,1,1,"Çok Düşük","Devretmek","Gerek Yoktur",null,null,null,null,null,1,1,1,"Çok Düşük","Devretmek","Gerek Yoktur"]
[101,null,null,null,null,1,1,1,"Çok Düşük","Devretmek","Gerek Yoktur",null,null,null,null,null,1,1,1,"Çok Düşük","Devretmek","Gerek Yoktur"]
[102,null,null,null,null,1,1,1,"Çok Düşük","Devretmek","Gerek Yoktur",null,null,null,null,null,1,1,1,"Çok Düşük","Devretmek","Gerek Yoktur"]
[103,null,null,null,null,1,1,1,"Çok Düşük","Devretmek","Gerek Yoktur",null,null,null,null,null,1,1,1,"Çok Düşük","Devretmek","Gerek Yoktur"]
[104,null,null,null,null,1,1,1,"Çok Düşük","Devretmek","Gerek Yoktur",null,null,null,null,null,1,1,1,"Çok Düşük","Devretmek","Gerek Yoktur"]
[105,null,null,null,null,1,1,1,"Çok Düşük","Devretmek","Gerek Yoktur",null,null,null,null,null,1,1,1,"Çok Düşük","Devretmek","Gerek Yoktur"]
[106,null,null,null,null,1,1,1,"Çok Düşük","Devretmek","Gerek Yoktur",null,null,null,null,null,1,1,1,"Çok Düşük","Devretmek","Gerek Yoktur"]
[107,null,null,null,null,1,1,1,"Çok Düşük","Devretmek","Gerek Yoktur",null,null,null,null,null,1,1,1,"Çok Düşük","Devretmek","Gerek Yoktur"]
[108,null,null,null,null,1,1,1,"Çok Düşük","Devretmek","Gerek Yoktur",null,null,null,null,null,1,1,1,"Çok Düşük","Devretmek","Gerek Yoktur"]
[109,null,null,null,null,1,1,1,"Çok Düşük","Devretmek","Gerek Yoktur",null,null,null,null,null,1,1,1,"Çok Düşük","Devretmek","Gerek Yoktur"]
[110,null,null,null,null,1,1,1,"Çok Düşük","Devretmek","Gerek Yoktur",null,null,null,null,null,1,1,1,"Çok Düşük","Devretmek","Gerek Yoktur"]
[111,null,null,null,null,1,1,1,"Çok Düşük","Devretmek","Gerek Yoktur",null,null,null,null,null,1,1,1,"Çok Düşük","Devretmek","Gerek Yoktur"]
[112,null,null,null,null,1,1,1,"Çok Düşük","Devretmek","Gerek Yoktur",null,null,null,null,null,1,1,1,"Çok Düşük","Devretmek","Gerek Yoktur"]
[113,null,null,null,null,1,1,1,"Çok Düşük","Devretmek","Gerek Yoktur",null,null,null,null,null,1,1,1,"Çok Düşük","Devretmek","Gerek Yoktur"]
[114,null,null,null,null,1,1,1,"Çok Düşük","Devretmek","Gerek Yoktur",null,null,null,null,null,1,1,1,"Çok Düşük","Devretmek","Gerek Yoktur"]
[115,null,null,null,null,1,1,1,"Çok Düşük","Devretmek","Gerek Yoktur",null,null,null,null,null,1,1,1,"Çok Düşük","Devretmek","Gerek Yoktur"]
[116,null,null,null,null,1,1,1,"Çok Düşük","Devretmek","Gerek Yoktur",null,null,null,null,null,1,1,1,"Çok Düşük","Devretmek","Gerek Yoktur"]
[117,null,null,null,null,1,1,1,"Çok Düşük","Devretmek","Gerek Yoktur",null,null,null,null,null,1,1,1,"Çok Düşük","Devretmek","Gerek Yoktur"]
[118,null,null,null,null,1,1,1,"Çok Düşük","Devretmek","Gerek Yoktur",null,null,null,null,null,1,1,1,"Çok Düşük","Devretmek","Gerek Yoktur"]
[119,null,null,null,null,1,1,1,"Çok Düşük","Devretmek","Gerek Yoktur",null,null,null,null,null,1,1,1,"Çok Düşük","Devretmek","Gerek Yoktur"]
[120,null,null,null,null,1,1,1,"Çok Düşük","Devretmek","Gerek Yoktur",null,null,null,null,null,1,1,1,"Çok Düşük","Devretmek","Gerek Yoktur"]
[121,null,null,null,null,1,1,1,"Çok Düşük","Devretmek","Gerek Yoktur",null,null,null,null,null,1,1,1,"Çok Düşük","Devretmek","Gerek Yoktur"]
[122,null,null,null,null,1,1,1,"Çok Düşük","Devretmek","Gerek Yoktur",null,null,null,null,null,1,1,1,"Çok Düşük","Devretmek","Gerek Yoktur"]
[123,null,null,null,null,1,1,1,"Çok Düşük","Devretmek","Gerek Yoktur",null,null,null,null,null,1,1,1,"Çok Düşük","Devretmek","Gerek Yoktur"]
[124,null,null,null,null,1,1,1,"Çok Düşük","Devretmek","Gerek Yoktur",null,null,null,null,null,1,1,1,"Çok Düşük","Devretmek","Gerek Yoktur"]
[125,null,null,null,null,1,1,1,"Çok Düşük","Devretmek","Gerek Yoktur",null,null,null,null,null,1,1,1,"Çok Düşük","Devretmek","Gerek Yoktur"]
[126,null,null,null,null,1,1,1,"Çok Düşük","Devretmek","Gerek Yoktur",null,null,null,null,null,1,1,1,"Çok Düşük","Devretmek","Gerek Yoktur"]
[127,null,null,null,null,1,1,1,"Çok Düşük","Devretmek","Gerek Yoktur",null,null,null,null,null,1,1,1,"Çok Düşük","Devretmek","Gerek Yoktur"]
[128,null,null,null,null,1,1,1,"Çok Düşük","Devretmek","Gerek Yoktur",null,null,null,null,null,1,1,1,"Çok Düşük","Devretmek","Gerek Yoktur"]
[129,null,null,null,null,1,1,1,"Çok Düşük","Devretmek","Gerek Yoktur",null,null,null,null,null,1,1,1,"Çok Düşük","Devretmek","Gerek Yoktur"]
[130,null,null,null,null,1,1,1,{"$f":"IF(H134<=4,\"Çok Düşük\",(IF(H134<=8,\"Düşük\",(IF(H134<=14,\"Orta\",(IF(H134<=19,\"Yüksek\",(IF(H134<=25,\"Çok Yüksek\",)))))))))","v":"Çok Düşük"},"Devretmek","Gerek Yoktur",null,null,null,null,null,1,1,1,{"$f":"IF(S134<=4,\"Çok Düşük\",(IF(S134<=8,\"Düşük\",(IF(S134<=14,\"Orta\",(IF(S134<=19,\"Yüksek\",(IF(S134<=25,\"Çok Yüksek\",)))))))))","v":"Çok Düşük"},"Devretmek","Gerek Yoktur"]
[131,null,null,null,null,1,1,1,"Çok Düşük","Devretmek","Gerek Yoktur",null,null,null,null,null,1,1,1,"Çok Düşük","Devretmek","Gerek Yoktur"]
[132,null,null,null,null,1,1,1,"Çok Düşük","Devretmek","Gerek Yoktur",null,null,null,null,null,1,1,1,"Çok Düşük","Devretmek","Gerek Yoktur"]
[133,null,null,null,null,1,1,1,"Çok Düşük","Devretmek","Gerek Yoktur",null,null,null,null,null,1,1,1,"Çok Düşük","Devretmek","Gerek Yoktur"]
[134,null,null,null,null,1,1,{"$f":"F138*G138","v":1},"Çok Düşük","Devretmek",{"$f":"IF(H138<=12,\"Gerek Yoktur\",(IF(H138<=25,\"Gereklidir\")))","v":"Gerek Yoktur"},null,null,null,null,null,1,1,{"$f":"Q138*R138","v":1},"Çok Düşük","Devretmek",{"$f":"IF(S138<=12,\"Gerek Yoktur\",(IF(S138<=25,\"Gereklidir\")))","v":"Gerek Yoktur"}]
[135,null,null,null,null,1,1,1,"Çok Düşük","Devretmek","Gerek Yoktur",null,null,null,null,null,1,1,1,"Çok Düşük","Devretmek","Gerek Yoktur"]
[136,null,null,null,null,1,1,1,"Çok Düşük","Devretmek","Gerek Yoktur",null,null,null,null,null,1,1,1,"Çok Düşük","Devretmek","Gerek Yoktur"]
[137,null,null,null,null,1,1,1,"Çok Düşük","Devretmek","Gerek Yoktur",null,null,null,null,null,1,1,1,"Çok Düşük","Devretmek","Gerek Yoktur"]
[138,null,null,null,null,1,1,1,"Çok Düşük","Devretmek","Gerek Yoktur",null,null,null,null,null,1,1,1,"Çok Düşük","Devretmek","Gerek Yoktur"]
[139,null,null,null,null,1,1,1,"Çok Düşük","Devretmek","Gerek Yoktur",null,null,null,null,null,1,1,1,"Çok Düşük","Devretmek","Gerek Yoktur"]
[140,null,null,null,null,1,1,1,"Çok Düşük","Devretmek","Gerek Yoktur",null,null,null,null,null,1,1,1,"Çok Düşük","Devretmek","Gerek Yoktur"]
[141,null,null,null,null,1,1,1,"Çok Düşük","Devretmek","Gerek Yoktur",null,null,null,null,null,1,1,1,"Çok Düşük","Devretmek","Gerek Yoktur"]
[142,null,null,null,null,1,1,1,"Çok Düşük","Devretmek","Gerek Yoktur",null,null,null,null,null,1,1,1,"Çok Düşük","Devretmek","Gerek Yoktur"]
[143,null,null,null,null,1,1,1,"Çok Düşük","Devretmek","Gerek Yoktur",null,null,null,null,null,1,1,1,"Çok Düşük","Devretmek","Gerek Yoktur"]
[144,null,null,null,null,1,1,1,"Çok Düşük","Devretmek","Gerek Yoktur",null,null,null,null,null,1,1,1,"Çok Düşük","Devretmek","Gerek Yoktur"]
[145,null,null,null,null,1,1,1,"Çok Düşük","Devretmek","Gerek Yoktur",null,null,null,null,null,1,1,1,"Çok Düşük","Devretmek","Gerek Yoktur"]
[146,null,null,null,null,1,1,1,"Çok Düşük","Devretmek","Gerek Yoktur",null,null,null,null,null,1,1,1,"Çok Düşük","Devretmek","Gerek Yoktur"]
[147,null,null,null,null,1,1,1,"Çok Düşük","Devretmek","Gerek Yoktur",null,null,null,null,null,1,1,1,"Çok Düşük","Devretmek","Gerek Yoktur"]
[148,null,null,null,null,1,1,1,"Çok Düşük","Devretmek","Gerek Yoktur",null,null,null,null,null,1,1,1,"Çok Düşük","Devretmek","Gerek Yoktur"]
[149,null,null,null,null,1,1,1,"Çok Düşük","Devretmek","Gerek Yoktur",null,null,null,null,null,1,1,1,"Çok Düşük","Devretmek","Gerek Yoktur"]
[150,null,null,null,null,1,1,1,"Çok Düşük","Devretmek","Gerek Yoktur",null,null,null,null,null,1,1,1,"Çok Düşük","Devretmek","Gerek Yoktur"]

{"sheet":"Uygulama ve Hizmet","index":3,"n_rows":154,"n_cols":22,"rows_kept":154,"cut":false,"hidden":false,"merged":[[2,16,2,21],[0,2,1,21],[0,0,1,1],[2,0,3,0],[2,1,3,1],[2,3,2,10],[2,11,2,15]]}
[{"$error":"#VALUE!"},null,"UYGULAMA, HİZMET VE TOPLUMSAL KATKI SÜRECİ\nRİSK ANALİZİ"]
[]
["SIRA","İLGİLİ BİRİM","Doküman No: FRM-0348\nYayın Tarihi: 03.10.2024\nRevizyon Tarihi: 03.10.2024\nRevizyon No: 00","A (Mevcut Durum)",null,null,null,null,null,null,null,"B (Önlemlerin Alınmasından Sonra Yapılan Risk Değerlendirmesi)",null,null,null,null,"C (Sonuç)"]
[null,null,"Risk Tanımı","Risk Giderici Mevcut Faaliyet","İlgili Belge","Etki","Olasılık","Puan","Risk Derecesi","Karar","İyileştirme","Risk Giderme Yöntemi (Düzeltici ve Önleyici Kontrol Tedbirleri)","Sorumlu (Birim/Kişi)","Termin \n(Bitiş Tarihi)","Kaynak","Sonuçlar nasıl değerlendirilecek?","Etki","Olasılık","Puan","Risk Derecesi","Karar","İyileştirme"]
[1,"Hilvan Meslek Yüksekokulu ","Öğretim elemanlarına ait iç hat telefonlarının çalışmaması ","Meslek Yüksekokulumuzda öğretim elemanlarının iç hat araçlarının (telefon) bakım çalışması ","EBYS üzerinden sorunun bildirilmesi Bilgi İşlem Daire Başkanlığına yapılmıştır",3,5,{"$f":"F5*G5","v":15},{"$f":"IF(H5<=4,\"Çok Düşük\",(IF(H5<=8,\"Düşük\",(IF(H5<=14,\"Orta\",(IF(H5<=19,\"Yüksek\",(IF(H5<=25,\"Çok Yüksek\",)))))))))","v":"Yüksek"},"Devretmek",{"$f":"IF(H5<=12,\"Gerek Yoktur\",(IF(H5<=25,\"Gereklidir\")))","v":"Gereklidir"},null,null,null,null,null,1,1,{"$f":"Q5*R5","v":1},{"$f":"IF(S5<=4,\"Çok Düşük\",(IF(S5<=8,\"Düşük\",(IF(S5<=14,\"Orta\",(IF(S5<=19,\"Yüksek\",(IF(S5<=25,\"Çok Yüksek\",)))))))))","v":"Çok Düşük"},"Devretmek",{"$f":"IF(S5<=12,\"Gerek Yoktur\",(IF(S5<=25,\"Gereklidir\")))","v":"Gerek Yoktur"}]
[2,"Hilvan Meslek Yüksekokulu ","Ulaşım ve barınma imkanlarının yeterli olmaması","İlçede öğrenciler için barınma imkanı sağlayacak KYK yurdunun bulunması",null,4,4,{"$f":"F6*G6","v":16},{"$f":"IF(H6<=4,\"Çok Düşük\",(IF(H6<=8,\"Düşük\",(IF(H6<=14,\"Orta\",(IF(H6<=19,\"Yüksek\",(IF(H6<=25,\"Çok Yüksek\",)))))))))","v":"Yüksek"},"Devretmek","Gereklidir",null,null,null,null,null,1,1,{"$f":"Q6*R6","v":1},{"$f":"IF(S6<=4,\"Çok Düşük\",(IF(S6<=8,\"Düşük\",(IF(S6<=14,\"Orta\",(IF(S6<=19,\"Yüksek\",(IF(S6<=25,\"Çok Yüksek\",)))))))))","v":"Çok Düşük"},"Devretmek",{"$f":"IF(S6<=12,\"Gerek Yoktur\",(IF(S6<=25,\"Gereklidir\")))","v":"Gerek Yoktur"}]
[3,null,null,null,null,1,1,1,"Çok Düşük","Devretmek","Gerek Yoktur",null,null,null,null,null,1,1,1,"Çok Düşük","Devretmek","Gerek Yoktur"]
[4,null,null,null,null,1,1,1,"Çok Düşük","Devretmek","Gerek Yoktur",null,null,null,null,null,1,1,1,"Çok Düşük","Devretmek","Gerek Yoktur"]
[5,null,null,null,null,1,1,{"$f":"F9*G9","v":1},{"$f":"IF(H9<=4,\"Çok Düşük\",(IF(H9<=8,\"Düşük\",(IF(H9<=14,\"Orta\",(IF(H9<=19,\"Yüksek\",(IF(H9<=25,\"Çok Yüksek\",)))))))))","v":"Çok Düşük"},"Devretmek",{"$f":"IF(H9<=12,\"Gerek Yoktur\",(IF(H9<=25,\"Gereklidir\")))","v":"Gerek Yoktur"},null,null,null,null,null,1,1,{"$f":"Q9*R9","v":1},{"$f":"IF(S9<=4,\"Çok Düşük\",(IF(S9<=8,\"Düşük\",(IF(S9<=14,\"Orta\",(IF(S9<=19,\"Yüksek\",(IF(S9<=25,\"Çok Yüksek\",)))))))))","v":"Çok Düşük"},"Devretmek",{"$f":"IF(S9<=12,\"Gerek Yoktur\",(IF(S9<=25,\"Gereklidir\")))","v":"Gerek Yoktur"}]
[6,null,null,null,null,1,1,{"$f":"F10*G10","v":1},"Çok Düşük","Devretmek",{"$f":"IF(H10<=12,\"Gerek Yoktur\",(IF(H10<=25,\"Gereklidir\")))","v":"Gerek Yoktur"},null,null,null,null,null,1,1,{"$f":"Q10*R10","v":1},"Çok Düşük","Devretmek",{"$f":"IF(S10<=12,\"Gerek Yoktur\",(IF(S10<=25,\"Gereklidir\")))","v":"Gerek Yoktur"}]
[7,null,null,null,null,1,1,1,"Çok Düşük","Devretmek","Gerek Yoktur",null,null,null,null,null,1,1,1,"Çok Düşük","Devretmek","Gerek Yoktur"]
[8,null,null,null,null,1,1,1,"Çok Düşük","Devretmek","Gerek Yoktur",null,null,null,null,null,1,1,1,"Çok Düşük","Devretmek","Gerek Yoktur"]
[9,null,null,null,null,1,1,1,"Çok Düşük","Devretmek","Gerek Yoktur",null,null,null,null,null,1,1,1,"Çok Düşük","Devretmek","Gerek Yoktur"]
[10,null,null,null,null,1,1,1,"Çok Düşük","Devretmek","Gerek Yoktur",null,null,null,null,null,1,1,1,"Çok Düşük","Devretmek","Gerek Yoktur"]
[11,null,null,null,null,1,1,1,"Çok Düşük","Devretmek","Gerek Yoktur",null,null,null,null,null,1,1,1,"Çok Düşük","Devretmek","Gerek Yoktur"]
[12,null,null,null,null,1,1,1,"Çok Düşük","Devretmek","Gerek Yoktur",null,null,null,null,null,1,1,1,"Çok Düşük","Devretmek","Gerek Yoktur"]
[13,null,null,null,null,1,1,1,"Çok Düşük","Devretmek","Gerek Yoktur",null,null,null,null,null,1,1,1,"Çok Düşük","Devretmek","Gerek Yoktur"]
[14,null,null,null,null,1,1,1,"Çok Düşük","Devretmek","Gerek Yoktur",null,null,null,null,null,1,1,1,"Çok Düşük","Devretmek","Gerek Yoktur"]
[15,null,null,null,null,1,1,1,"Çok Düşük","Devretmek","Gerek Yoktur",null,null,null,null,null,1,1,1,"Çok Düşük","Devretmek","Gerek Yoktur"]
[16,null,null,null,null,1,1,1,"Çok Düşük","Devretmek","Gerek Yoktur",null,null,null,null,null,1,1,1,"Çok Düşük","Devretmek","Gerek Yoktur"]
[17,null,null,null,null,1,1,1,"Çok Düşük","Devretmek","Gerek Yoktur",null,null,null,null,null,1,1,1,"Çok Düşük","Devretmek","Gerek Yoktur"]
[18,null,null,null,null,1,1,1,"Çok Düşük","Devretmek","Gerek Yoktur",null,null,null,null,null,1,1,1,"Çok Düşük","Devretmek","Gerek Yoktur"]
[19,null,null,null,null,1,1,1,"Çok Düşük","Devretmek","Gerek Yoktur",null,null,null,null,null,1,1,1,"Çok Düşük","Devretmek","Gerek Yoktur"]
[20,null,null,null,null,1,1,1,"Çok Düşük","Devretmek","Gerek Yoktur",null,null,null,null,null,1,1,1,"Çok Düşük","Devretmek","Gerek Yoktur"]
[21,null,null,null,null,1,1,1,"Çok Düşük","Devretmek","Gerek Yoktur",null,null,null,null,null,1,1,1,"Çok Düşük","Devretmek","Gerek Yoktur"]
[22,null,null,null,null,1,1,1,"Çok Düşük","Devretmek","Gerek Yoktur",null,null,null,null,null,1,1,1,"Çok Düşük","Devretmek","Gerek Yoktur"]
[23,null,null,null,null,1,1,1,"Çok Düşük","Devretmek","Gerek Yoktur",null,null,null,null,null,1,1,1,"Çok Düşük","Devretmek","Gerek Yoktur"]
[24,null,null,null,null,1,1,1,"Çok Düşük","Devretmek","Gerek Yoktur",null,null,null,null,null,1,1,1,"Çok Düşük","Devretmek","Gerek Yoktur"]
[25,null,null,null,null,1,1,1,"Çok Düşük","Devretmek","Gerek Yoktur",null,null,null,null,null,1,1,1,"Çok Düşük","Devretmek","Gerek Yoktur"]
[26,null,null,null,null,1,1,1,"Çok Düşük","Devretmek","Gerek Yoktur",null,null,null,null,null,1,1,1,"Çok Düşük","Devretmek","Gerek Yoktur"]
[27,null,null,null,null,1,1,1,"Çok Düşük","Devretmek","Gerek Yoktur",null,null,null,null,null,1,1,1,"Çok Düşük","Devretmek","Gerek Yoktur"]
[28,null,null,null,null,1,1,1,"Çok Düşük","Devretmek","Gerek Yoktur",null,null,null,null,null,1,1,1,"Çok Düşük","Devretmek","Gerek Yoktur"]
[29,null,null,null,null,1,1,1,"Çok Düşük","Devretmek","Gerek Yoktur",null,null,null,null,null,1,1,1,"Çok Düşük","Devretmek","Gerek Yoktur"]
[30,null,null,null,null,1,1,1,"Çok Düşük","Devretmek","Gerek Yoktur",null,null,null,null,null,1,1,1,"Çok Düşük","Devretmek","Gerek Yoktur"]
[31,null,null,null,null,1,1,1,"Çok Düşük","Devretmek","Gerek Yoktur",null,null,null,null,null,1,1,1,"Çok Düşük","Devretmek","Gerek Yoktur"]
[32,null,null,null,null,1,1,1,"Çok Düşük","Devretmek","Gerek Yoktur",null,null,null,null,null,1,1,1,"Çok Düşük","Devretmek","Gerek Yoktur"]
[33,null,null,null,null,1,1,1,"Çok Düşük","Devretmek","Gerek Yoktur",null,null,null,null,null,1,1,1,"Çok Düşük","Devretmek","Gerek Yoktur"]
[34,null,null,null,null,1,1,1,"Çok Düşük","Devretmek","Gerek Yoktur",null,null,null,null,null,1,1,1,"Çok Düşük","Devretmek","Gerek Yoktur"]
[35,null,null,null,null,1,1,1,"Çok Düşük","Devretmek","Gerek Yoktur",null,null,null,null,null,1,1,1,"Çok Düşük","Devretmek","Gerek Yoktur"]
[36,null,null,null,null,1,1,1,"Çok Düşük","Devretmek","Gerek Yoktur",null,null,null,null,null,1,1,1,"Çok Düşük","Devretmek","Gerek Yoktur"]
[37,null,null,null,null,1,1,1,"Çok Düşük","Devretmek","Gerek Yoktur",null,null,null,null,null,1,1,1,"Çok Düşük","Devretmek","Gerek Yoktur"]
[38,null,null,null,null,1,1,1,"Çok Düşük","Devretmek","Gerek Yoktur",null,null,null,null,null,1,1,1,"Çok Düşük","Devretmek","Gerek Yoktur"]
[39,null,null,null,null,1,1,1,"Çok Düşük","Devretmek","Gerek Yoktur",null,null,null,null,null,1,1,1,"Çok Düşük","Devretmek","Gerek Yoktur"]
[40,null,null,null,null,1,1,1,"Çok Düşük","Devretmek","Gerek Yoktur",null,null,null,null,null,1,1,1,"Çok Düşük","Devretmek","Gerek Yoktur"]
[41,null,null,null,null,1,1,1,"Çok Düşük","Devretmek","Gerek Yoktur",null,null,null,null,null,1,1,1,"Çok Düşük","Devretmek","Gerek Yoktur"]
[42,null,null,null,null,1,1,1,"Çok Düşük","Devretmek","Gerek Yoktur",null,null,null,null,null,1,1,1,"Çok Düşük","Devretmek","Gerek Yoktur"]
[43,null,null,null,null,1,1,1,"Çok Düşük","Devretmek","Gerek Yoktur",null,null,null,null,null,1,1,1,"Çok Düşük","Devretmek","Gerek Yoktur"]
[44,null,null,null,null,1,1,1,"Çok Düşük","Devretmek","Gerek Yoktur",null,null,null,null,null,1,1,1,"Çok Düşük","Devretmek","Gerek Yoktur"]
[45,null,null,null,null,1,1,1,"Çok Düşük","Devretmek","Gerek Yoktur",null,null,null,null,null,1,1,1,"Çok Düşük","Devretmek","Gerek Yoktur"]
[46,null,null,null,null,1,1,1,"Çok Düşük","Devretmek","Gerek Yoktur",null,null,null,null,null,1,1,1,"Çok Düşük","Devretmek","Gerek Yoktur"]
[47,null,null,null,null,1,1,1,"Çok Düşük","Devretmek","Gerek Yoktur",null,null,null,null,null,1,1,1,"Çok Düşük","Devretmek","Gerek Yoktur"]
[48,null,null,null,null,1,1,1,"Çok Düşük","Devretmek","Gerek Yoktur",null,null,null,null,null,1,1,1,"Çok Düşük","Devretmek","Gerek Yoktur"]
[49,null,null,null,null,1,1,1,"Çok Düşük","Devretmek","Gerek Yoktur",null,null,null,null,null,1,1,1,"Çok Düşük","Devretmek","Gerek Yoktur"]
[50,null,null,null,null,1,1,1,"Çok Düşük","Devretmek","Gerek Yoktur",null,null,null,null,null,1,1,1,"Çok Düşük","Devretmek","Gerek Yoktur"]
[51,null,null,null,null,1,1,1,"Çok Düşük","Devretmek","Gerek Yoktur",null,null,null,null,null,1,1,1,"Çok Düşük","Devretmek","Gerek Yoktur"]
[52,null,null,null,null,1,1,1,"Çok Düşük","Devretmek","Gerek Yoktur",null,null,null,null,null,1,1,1,"Çok Düşük","Devretmek","Gerek Yoktur"]
[53,null,null,null,null,1,1,1,"Çok Düşük","Devretmek","Gerek Yoktur",null,null,null,null,null,1,1,1,"Çok Düşük","Devretmek","Gerek Yoktur"]
[54,null,null,null,null,1,1,1,"Çok Düşük","Devretmek","Gerek Yoktur",null,null,null,null,null,1,1,1,"Çok Düşük","Devretmek","Gerek Yoktur"]
[55,null,null,null,null,1,1,1,"Çok Düşük","Devretmek","Gerek Yoktur",null,null,null,null,null,1,1,1,"Çok Düşük","Devretmek","Gerek Yoktur"]
[56,null,null,null,null,1,1,1,"Çok Düşük","Devretmek","Gerek Yoktur",null,null,null,null,null,1,1,1,"Çok Düşük","Devretmek","Gerek Yoktur"]
[57,null,null,null,null,1,1,1,"Çok Düşük","Devretmek","Gerek Yoktur",null,null,null,null,null,1,1,1,"Çok Düşük","Devretmek","Gerek Yoktur"]
[58,null,null,null,null,1,1,1,"Çok Düşük","Devretmek","Gerek Yoktur",null,null,null,null,null,1,1,1,"Çok Düşük","Devretmek","Gerek Yoktur"]
[59,null,null,null,null,1,1,1,"Çok Düşük","Devretmek","Gerek Yoktur",null,null,null,null,null,1,1,1,"Çok Düşük","Devretmek","Gerek Yoktur"]
[60,null,null,null,null,1,1,1,"Çok Düşük","Devretmek","Gerek Yoktur",null,null,null,null,null,1,1,1,"Çok Düşük","Devretmek","Gerek Yoktur"]
[61,null,null,null,null,1,1,1,"Çok Düşük","Devretmek","Gerek Yoktur",null,null,null,null,null,1,1,1,"Çok Düşük","Devretmek","Gerek Yoktur"]
[62,null,null,null,null,1,1,1,"Çok Düşük","Devretmek","Gerek Yoktur",null,null,null,null,null,1,1,1,"Çok Düşük","Devretmek","Gerek Yoktur"]
[63,null,null,null,null,1,1,1,"Çok Düşük","Devretmek","Gerek Yoktur",null,null,null,null,null,1,1,1,"Çok Düşük","Devretmek","Gerek Yoktur"]
[64,null,null,null,null,1,1,1,"Çok Düşük","Devretmek","Gerek Yoktur",null,null,null,null,null,1,1,1,"Çok Düşük","Devretmek","Gerek Yoktur"]
[65,null,null,null,null,1,1,1,"Çok Düşük","Devretmek","Gerek Yoktur",null,null,null,null,null,1,1,1,"Çok Düşük","Devretmek","Gerek Yoktur"]
[66,null,null,null,null,1,1,1,{"$f":"IF(H70<=4,\"Çok Düşük\",(IF(H70<=8,\"Düşük\",(IF(H70<=14,\"Orta\",(IF(H70<=19,\"Yüksek\",(IF(H70<=25,\"Çok Yüksek\",)))))))))","v":"Çok Düşük"},"Devretmek","Gerek Yoktur",null,null,null,null,null,1,1,1,{"$f":"IF(S70<=4,\"Çok Düşük\",(IF(S70<=8,\"Düşük\",(IF(S70<=14,\"Orta\",(IF(S70<=19,\"Yüksek\",(IF(S70<=25,\"Çok Yüksek\",)))))))))","v":"Çok Düşük"},"Devretmek","Gerek Yoktur"]
[67,null,null,null,null,1,1,1,"Çok Düşük","Devretmek","Gerek Yoktur",null,null,null,null,null,1,1,1,"Çok Düşük","Devretmek","Gerek Yoktur"]
[68,null,null,null,null,1,1,1,"Çok Düşük","Devretmek","Gerek Yoktur",null,null,null,null,null,1,1,1,"Çok Düşük","Devretmek","Gerek Yoktur"]
[69,null,null,null,null,1,1,1,"Çok Düşük","Devretmek","Gerek Yoktur",null,null,null,null,null,1,1,1,"Çok Düşük","Devretmek","Gerek Yoktur"]
[70,null,null,null,null,1,1,{"$f":"F74*G74","v":1},"Çok Düşük","Devretmek",{"$f":"IF(H74<=12,\"Gerek Yoktur\",(IF(H74<=25,\"Gereklidir\")))","v":"Gerek Yoktur"},null,null,null,null,null,1,1,{"$f":"Q74*R74","v":1},"Çok Düşük","Devretmek",{"$f":"IF(S74<=12,\"Gerek Yoktur\",(IF(S74<=25,\"Gereklidir\")))","v":"Gerek Yoktur"}]
[71,null,null,null,null,1,1,1,"Çok Düşük","Devretmek","Gerek Yoktur",null,null,null,null,null,1,1,1,"Çok Düşük","Devretmek","Gerek Yoktur"]
[72,null,null,null,null,1,1,1,"Çok Düşük","Devretmek","Gerek Yoktur",null,null,null,null,null,1,1,1,"Çok Düşük","Devretmek","Gerek Yoktur"]
[73,null,null,null,null,1,1,1,"Çok Düşük","Devretmek","Gerek Yoktur",null,null,null,null,null,1,1,1,"Çok Düşük","Devretmek","Gerek Yoktur"]
[74,null,null,null,null,1,1,1,"Çok Düşük","Devretmek","Gerek Yoktur",null,null,null,null,null,1,1,1,"Çok Düşük","Devretmek","Gerek Yoktur"]
[75,null,null,null,null,1,1,1,"Çok Düşük","Devretmek","Gerek Yoktur",null,null,null,null,null,1,1,1,"Çok Düşük","Devretmek","Gerek Yoktur"]
[76,null,null,null,null,1,1,1,"Çok Düşük","Devretmek","Gerek Yoktur",null,null,null,null,null,1,1,1,"Çok Düşük","Devretmek","Gerek Yoktur"]
[77,null,null,null,null,1,1,1,"Çok Düşük","Devretmek","Gerek Yoktur",null,null,null,null,null,1,1,1,"Çok Düşük","Devretmek","Gerek Yoktur"]
[78,null,null,null,null,1,1,1,"Çok Düşük","Devretmek","Gerek Yoktur",null,null,null,null,null,1,1,1,"Çok Düşük","Devretmek","Gerek Yoktur"]
[79,null,null,null,null,1,1,1,"Çok Düşük","Devretmek","Gerek Yoktur",null,null,null,null,null,1,1,1,"Çok Düşük","Devretmek","Gerek Yoktur"]
[80,null,null,null,null,1,1,1,"Çok Düşük","Devretmek","Gerek Yoktur",null,null,null,null,null,1,1,1,"Çok Düşük","Devretmek","Gerek Yoktur"]
[81,null,null,null,null,1,1,1,"Çok Düşük","Devretmek","Gerek Yoktur",null,null,null,null,null,1,1,1,"Çok Düşük","Devretmek","Gerek Yoktur"]
[82,null,null,null,null,1,1,1,"Çok Düşük","Devretmek","Gerek Yoktur",null,null,null,null,null,1,1,1,"Çok Düşük","Devretmek","Gerek Yoktur"]
[83,null,null,null,null,1,1,1,"Çok Düşük","Devretmek","Gerek Yoktur",null,null,null,null,null,1,1,1,"Çok Düşük","Devretmek","Gerek Yoktur"]
[84,null,null,null,null,1,1,1,"Çok Düşük","Devretmek","Gerek Yoktur",null,null,null,null,null,1,1,1,"Çok Düşük","Devretmek","Gerek Yoktur"]
[85,null,null,null,null,1,1,1,"Çok Düşük","Devretmek","Gerek Yoktur",null,null,null,null,null,1,1,1,"Çok Düşük","Devretmek","Gerek Yoktur"]
[86,null,null,null,null,1,1,1,"Çok Düşük","Devretmek","Gerek Yoktur",null,null,null,null,null,1,1,1,"Çok Düşük","Devretmek","Gerek Yoktur"]
[87,null,null,null,null,1,1,1,"Çok Düşük","Devretmek","Gerek Yoktur",null,null,null,null,null,1,1,1,"Çok Düşük","Devretmek","Gerek Yoktur"]
[88,null,null,null,null,1,1,1,"Çok Düşük","Devretmek","Gerek Yoktur",null,null,null,null,null,1,1,1,"Çok Düşük","Devretmek","Gerek Yoktur"]
[89,null,null,null,null,1,1,1,"Çok Düşük","Devretmek","Gerek Yoktur",null,null,null,null,null,1,1,1,"Çok Düşük","Devretmek","Gerek Yoktur"]
[90,null,null,null,null,1,1,1,"Çok Düşük","Devretmek","Gerek Yoktur",null,null,null,null,null,1,1,1,"Çok Düşük","Devretmek","Gerek Yoktur"]
[91,null,null,null,null,1,1,1,"Çok Düşük","Devretmek","Gerek Yoktur",null,null,null,null,null,1,1,1,"Çok Düşük","Devretmek","Gerek Yoktur"]
[92,null,null,null,null,1,1,1,"Çok Düşük","Devretmek","Gerek Yoktur",null,null,null,null,null,1,1,1,"Çok Düşük","Devretmek","Gerek Yoktur"]
[93,null,null,null,null,1,1,1,"Çok Düşük","Devretmek","Gerek Yoktur",null,null,null,null,null,1,1,1,"Çok Düşük","Devretmek","Gerek Yoktur"]
[94,null,null,null,null,1,1,1,"Çok Düşük","Devretmek","Gerek Yoktur",null,null,null,null,null,1,1,1,"Çok Düşük","Devretmek","Gerek Yoktur"]
[95,null,null,null,null,1,1,1,"Çok Düşük","Devretmek","Gerek Yoktur",null,null,null,null,null,1,1,1,"Çok Düşük","Devretmek","Gerek Yoktur"]
[96,null,null,null,null,1,1,1,"Çok Düşük","Devretmek","Gerek Yoktur",null,null,null,null,null,1,1,1,"Çok Düşük","Devretmek","Gerek Yoktur"]
[97,null,null,null,null,1,1,1,"Çok Düşük","Devretmek","Gerek Yoktur",null,null,null,null,null,1,1,1,"Çok Düşük","Devretmek","Gerek Yoktur"]
[98,null,null,null,null,1,1,1,"Çok Düşük","Devretmek","Gerek Yoktur",null,null,null,null,null,1,1,1,"Çok Düşük","Devretmek","Gerek Yoktur"]
[99,null,null,null,null,1,1,1,"Çok Düşük","Devretmek","Gerek Yoktur",null,null,null,null,null,1,1,1,"Çok Düşük","Devretmek","Gerek Yoktur"]
[100,null,null,null,null,1,1,1,"Çok Düşük","Devretmek","Gerek Yoktur",null,null,null,null,null,1,1,1,"Çok Düşük","Devretmek","Gerek Yoktur"]
[101,null,null,null,null,1,1,1,"Çok Düşük","Devretmek","Gerek Yoktur",null,null,null,null,null,1,1,1,"Çok Düşük","Devretmek","Gerek Yoktur"]
[102,null,null,null,null,1,1,1,"Çok Düşük","Devretmek","Gerek Yoktur",null,null,null,null,null,1,1,1,"Çok Düşük","Devretmek","Gerek Yoktur"]
[103,null,null,null,null,1,1,1,"Çok Düşük","Devretmek","Gerek Yoktur",null,null,null,null,null,1,1,1,"Çok Düşük","Devretmek","Gerek Yoktur"]
[104,null,null,null,null,1,1,1,"Çok Düşük","Devretmek","Gerek Yoktur",null,null,null,null,null,1,1,1,"Çok Düşük","Devretmek","Gerek Yoktur"]
[105,null,null,null,null,1,1,1,"Çok Düşük","Devretmek","Gerek Yoktur",null,null,null,null,null,1,1,1,"Çok Düşük","Devretmek","Gerek Yoktur"]
[106,null,null,null,null,1,1,1,"Çok Düşük","Devretmek","Gerek Yoktur",null,null,null,null,null,1,1,1,"Çok Düşük","Devretmek","Gerek Yoktur"]
[107,null,null,null,null,1,1,1,"Çok Düşük","Devretmek","Gerek Yoktur",null,null,null,null,null,1,1,1,"Çok Düşük","Devretmek","Gerek Yoktur"]
[108,null,null,null,null,1,1,1,"Çok Düşük","Devretmek","Gerek Yoktur",null,null,null,null,null,1,1,1,"Çok Düşük","Devretmek","Gerek Yoktur"]
[109,null,null,null,null,1,1,1,"Çok Düşük","Devretmek","Gerek Yoktur",null,null,null,null,null,1,1,1,"Çok Düşük","Devretmek","Gerek Yoktur"]
[110,null,null,null,null,1,1,1,"Çok Düşük","Devretmek","Gerek Yoktur",null,null,null,null,null,1,1,1,"Çok Düşük","Devretmek","Gerek Yoktur"]
[111,null,null,null,null,1,1,1,"Çok Düşük","Devretmek","Gerek Yoktur",null,null,null,null,null,1,1,1,"Çok Düşük","Devretmek","Gerek Yoktur"]
[112,null,null,null,null,1,1,1,"Çok Düşük","Devretmek","Gerek Yoktur",null,null,null,null,null,1,1,1,"Çok Düşük","Devretmek","Gerek Yoktur"]
[113,null,null,null,null,1,1,1,"Çok Düşük","Devretmek","Gerek Yoktur",null,null,null,null,null,1,1,1,"Çok Düşük","Devretmek","Gerek Yoktur"]
[114,null,null,null,null,1,1,1,"Çok Düşük","Devretmek","Gerek Yoktur",null,null,null,null,null,1,1,1,"Çok Düşük","Devretmek","Gerek Yoktur"]
[115,null,null,null,null,1,1,1,"Çok Düşük","Devretmek","Gerek Yoktur",null,null,null,null,null,1,1,1,"Çok Düşük","Devretmek","Gerek Yoktur"]
[116,null,null,null,null,1,1,1,"Çok Düşük","Devretmek","Gerek Yoktur",null,null,null,null,null,1,1,1,"Çok Düşük","Devretmek","Gerek Yoktur"]
[117,null,null,null,null,1,1,1,"Çok Düşük","Devretmek","Gerek Yoktur",null,null,null,null,null,1,1,1,"Çok Düşük","Devretmek","Gerek Yoktur"]
[118,null,null,null,null,1,1,1,"Çok Düşük","Devretmek","Gerek Yoktur",null,null,null,null,null,1,1,1,"Çok Düşük","Devretmek","Gerek Yoktur"]
[119,null,null,null,null,1,1,1,"Çok Düşük","Devretmek","Gerek Yoktur",null,null,null,null,null,1,1,1,"Çok Düşük","Devretmek","Gerek Yoktur"]
[120,null,null,null,null,1,1,1,"Çok Düşük","Devretmek","Gerek Yoktur",null,null,null,null,null,1,1,1,"Çok Düşük","Devretmek","Gerek Yoktur"]
[121,null,null,null,null,1,1,1,"Çok Düşük","Devretmek","Gerek Yoktur",null,null,null,null,null,1,1,1,"Çok Düşük","Devretmek","Gerek Yoktur"]
[122,null,null,null,null,1,1,1,"Çok Düşük","Devretmek","Gerek Yoktur",null,null,null,null,null,1,1,1,"Çok Düşük","Devretmek","Gerek Yoktur"]
[123,null,null,null,null,1,1,1,"Çok Düşük","Devretmek","Gerek Yoktur",null,null,null,null,null,1,1,1,"Çok Düşük","Devretmek","Gerek Yoktur"]
[124,null,null,null,null,1,1,1,"Çok Düşük","Devretmek","Gerek Yoktur",null,null,null,null,null,1,1,1,"Çok Düşük","Devretmek","Gerek Yoktur"]
[125,null,null,null,null,1,1,1,"Çok Düşük","Devretmek","Gerek Yoktur",null,null,null,null,null,1,1,1,"Çok Düşük","Devretmek","Gerek Yoktur"]
[126,null,null,null,null,1,1,1,"Çok Düşük","Devretmek","Gerek Yoktur",null,null,null,null,null,1,1,1,"Çok Düşük","Devretmek","Gerek Yoktur"]
[127,null,null,null,null,1,1,1,"Çok Düşük","Devretmek","Gerek Yoktur",null,null,null,null,null,1,1,1,"Çok Düşük","Devretmek","Gerek Yoktur"]
[128,null,null,null,null,1,1,1,"Çok Düşük","Devretmek","Gerek Yoktur",null,null,null,null,null,1,1,1,"Çok Düşük","Devretmek","Gerek Yoktur"]
[129,null,null,null,null,1,1,1,"Çok Düşük","Devretmek","Gerek Yoktur",null,null,null,null,null,1,1,1,"Çok Düşük","Devretmek","Gerek Yoktur"]
[130,null,null,null,null,1,1,1,{"$f":"IF(H134<=4,\"Çok Düşük\",(IF(H134<=8,\"Düşük\",(IF(H134<=14,\"Orta\",(IF(H134<=19,\"Yüksek\",(IF(H134<=25,\"Çok Yüksek\",)))))))))","v":"Çok Düşük"},"Devretmek","Gerek Yoktur",null,null,null,null,null,1,1,1,{"$f":"IF(S134<=4,\"Çok Düşük\",(IF(S134<=8,\"Düşük\",(IF(S134<=14,\"Orta\",(IF(S134<=19,\"Yüksek\",(IF(S134<=25,\"Çok Yüksek\",)))))))))","v":"Çok Düşük"},"Devretmek","Gerek Yoktur"]
[131,null,null,null,null,1,1,1,"Çok Düşük","Devretmek","Gerek Yoktur",null,null,null,null,null,1,1,1,"Çok Düşük","Devretmek","Gerek Yoktur"]
[132,null,null,null,null,1,1,1,"Çok Düşük","Devretmek","Gerek Yoktur",null,null,null,null,null,1,1,1,"Çok Düşük","Devretmek","Gerek Yoktur"]
[133,null,null,null,null,1,1,1,"Çok Düşük","Devretmek","Gerek Yoktur",null,null,null,null,null,1,1,1,"Çok Düşük","Devretmek","Gerek Yoktur"]
[134,null,null,null,null,1,1,{"$f":"F138*G138","v":1},"Çok Düşük","Devretmek",{"$f":"IF(H138<=12,\"Gerek Yoktur\",(IF(H138<=25,\"Gereklidir\")))","v":"Gerek Yoktur"},null,null,null,null,null,1,1,{"$f":"Q138*R138","v":1},"Çok Düşük","Devretmek",{"$f":"IF(S138<=12,\"Gerek Yoktur\",(IF(S138<=25,\"Gereklidir\")))","v":"Gerek Yoktur"}]
[135,null,null,null,null,1,1,1,"Çok Düşük","Devretmek","Gerek Yoktur",null,null,null,null,null,1,1,1,"Çok Düşük","Devretmek","Gerek Yoktur"]
[136,null,null,null,null,1,1,1,"Çok Düşük","Devretmek","Gerek Yoktur",null,null,null,null,null,1,1,1,"Çok Düşük","Devretmek","Gerek Yoktur"]
[137,null,null,null,null,1,1,1,"Çok Düşük","Devretmek","Gerek Yoktur",null,null,null,null,null,1,1,1,"Çok Düşük","Devretmek","Gerek Yoktur"]
[138,null,null,null,null,1,1,1,"Çok Düşük","Devretmek","Gerek Yoktur",null,null,null,null,null,1,1,1,"Çok Düşük","Devretmek","Gerek Yoktur"]
[139,null,null,null,null,1,1,1,"Çok Düşük","Devretmek","Gerek Yoktur",null,null,null,null,null,1,1,1,"Çok Düşük","Devretmek","Gerek Yoktur"]
[140,null,null,null,null,1,1,1,"Çok Düşük","Devretmek","Gerek Yoktur",null,null,null,null,null,1,1,1,"Çok Düşük","Devretmek","Gerek Yoktur"]
[141,null,null,null,null,1,1,1,"Çok Düşük","Devretmek","Gerek Yoktur",null,null,null,null,null,1,1,1,"Çok Düşük","Devretmek","Gerek Yoktur"]
[142,null,null,null,null,1,1,1,"Çok Düşük","Devretmek","Gerek Yoktur",null,null,null,null,null,1,1,1,"Çok Düşük","Devretmek","Gerek Yoktur"]
[143,null,null,null,null,1,1,1,"Çok Düşük","Devretmek","Gerek Yoktur",null,null,null,null,null,1,1,1,"Çok Düşük","Devretmek","Gerek Yoktur"]
[144,null,null,null,null,1,1,1,"Çok Düşük","Devretmek","Gerek Yoktur",null,null,null,null,null,1,1,1,"Çok Düşük","Devretmek","Gerek Yoktur"]
[145,null,null,null,null,1,1,1,"Çok Düşük","Devretmek","Gerek Yoktur",null,null,null,null,null,1,1,1,"Çok Düşük","Devretmek","Gerek Yoktur"]
[146,null,null,null,null,1,1,1,"Çok Düşük","Devretmek","Gerek Yoktur",null,null,null,null,null,1,1,1,"Çok Düşük","Devretmek","Gerek Yoktur"]
[147,null,null,null,null,1,1,1,"Çok Düşük","Devretmek","Gerek Yoktur",null,null,null,null,null,1,1,1,"Çok Düşük","Devretmek","Gerek Yoktur"]
[148,null,null,null,null,1,1,1,"Çok Düşük","Devretmek","Gerek Yoktur",null,null,null,null,null,1,1,1,"Çok Düşük","Devretmek","Gerek Yoktur"]
[149,null,null,null,null,1,1,1,"Çok Düşük","Devretmek","Gerek Yoktur",null,null,null,null,null,1,1,1,"Çok Düşük","Devretmek","Gerek Yoktur"]
[150,null,null,null,null,1,1,1,"Çok Düşük","Devretmek","Gerek Yoktur",null,null,null,null,null,1,1,1,"Çok Düşük","Devretmek","Gerek Yoktur"]

{"sheet":"İdari ve Destek","index":4,"n_rows":154,"n_cols":22,"rows_kept":154,"cut":false,"hidden":false,"merged":[[0,0,1,1],[0,2,1,21],[2,0,3,0],[2,1,3,1],[2,3,2,10],[2,11,2,15],[2,16,2,21]]}
[{"$error":"#VALUE!"},null,"İDARİ VE DESTEK\nRİSK ANALİZİ"]
[]
["SIRA","İLGİLİ BİRİM","Doküman No: FRM-0348\nYayın Tarihi: 03.10.2024\nRevizyon Tarihi: 03.10.2024\nRevizyon No: 00","A (Mevcut Durum)",null,null,null,null,null,null,null,"B (Önlemlerin Alınmasından Sonra Yapılan Risk Değerlendirmesi)",null,null,null,null,"C (Sonuç)"]
[null,null,"Risk Tanımı","Risk Giderici Mevcut Faaliyet","İlgili Belge","Etki","Olasılık","Puan","Risk Derecesi","Karar","İyileştirme","Risk Giderme Yöntemi (Düzeltici ve Önleyici Kontrol Tedbirleri)","Sorumlu (Birim/Kişi)","Termin \n(Bitiş Tarihi)","Kaynak","Sonuçlar nasıl değerlendirilecek?","Etki","Olasılık","Puan","Risk Derecesi","Karar","İyileştirme"]
[1,"Hilvan Meslek Yüksekokulu ","Yemek Hizmetinin Sağlanamaması Riski","Sağlık, Kültür ve Spor Daire Başkanlığı tarafından gerekli desteğin sağlanması ","Sağlık, Kültür ve Spor Daire Başkanlığına yazı yazılmıştır",4,4,{"$f":"F5*G5","v":16},{"$f":"IF(H5<=4,\"Çok Düşük\",(IF(H5<=8,\"Düşük\",(IF(H5<=14,\"Orta\",(IF(H5<=19,\"Yüksek\",(IF(H5<=25,\"Çok Yüksek\",)))))))))","v":"Yüksek"},"Devretmek",{"$f":"IF(H5<=12,\"Gerek Yoktur\",(IF(H5<=25,\"Gereklidir\")))","v":"Gereklidir"},null,null,null,null,null,1,1,{"$f":"Q5*R5","v":1},{"$f":"IF(S5<=4,\"Çok Düşük\",(IF(S5<=8,\"Düşük\",(IF(S5<=14,\"Orta\",(IF(S5<=19,\"Yüksek\",(IF(S5<=25,\"Çok Yüksek\",)))))))))","v":"Çok Düşük"},"Devretmek",{"$f":"IF(S5<=12,\"Gerek Yoktur\",(IF(S5<=25,\"Gereklidir\")))","v":"Gerek Yoktur"}]
[2,null,null,null,null,1,1,1,"Çok Düşük","Devretmek","Gerek Yoktur",null,null,null,null,null,1,1,1,"Çok Düşük","Devretmek","Gerek Yoktur"]
[3,null,null,null,null,1,1,1,"Çok Düşük","Devretmek","Gerek Yoktur",null,null,null,null,null,1,1,1,"Çok Düşük","Devretmek","Gerek Yoktur"]
[4,null,null,null,null,1,1,1,"Çok Düşük","Devretmek","Gerek Yoktur",null,null,null,null,null,1,1,1,"Çok Düşük","Devretmek","Gerek Yoktur"]
[5,null,null,null,null,1,1,{"$f":"F9*G9","v":1},{"$f":"IF(H9<=4,\"Çok Düşük\",(IF(H9<=8,\"Düşük\",(IF(H9<=14,\"Orta\",(IF(H9<=19,\"Yüksek\",(IF(H9<=25,\"Çok Yüksek\",)))))))))","v":"Çok Düşük"},"Devretmek",{"$f":"IF(H9<=12,\"Gerek Yoktur\",(IF(H9<=25,\"Gereklidir\")))","v":"Gerek Yoktur"},null,null,null,null,null,1,1,{"$f":"Q9*R9","v":1},{"$f":"IF(S9<=4,\"Çok Düşük\",(IF(S9<=8,\"Düşük\",(IF(S9<=14,\"Orta\",(IF(S9<=19,\"Yüksek\",(IF(S9<=25,\"Çok Yüksek\",)))))))))","v":"Çok Düşük"},"Devretmek",{"$f":"IF(S9<=12,\"Gerek Yoktur\",(IF(S9<=25,\"Gereklidir\")))","v":"Gerek Yoktur"}]
[6,null,null,null,null,1,1,{"$f":"F10*G10","v":1},"Çok Düşük","Devretmek",{"$f":"IF(H10<=12,\"Gerek Yoktur\",(IF(H10<=25,\"Gereklidir\")))","v":"Gerek Yoktur"},null,null,null,null,null,1,1,{"$f":"Q10*R10","v":1},"Çok Düşük","Devretmek",{"$f":"IF(S10<=12,\"Gerek Yoktur\",(IF(S10<=25,\"Gereklidir\")))","v":"Gerek Yoktur"}]
[7,null,null,null,null,1,1,1,"Çok Düşük","Devretmek","Gerek Yoktur",null,null,null,null,null,1,1,1,"Çok Düşük","Devretmek","Gerek Yoktur"]
[8,null,null,null,null,1,1,1,"Çok Düşük","Devretmek","Gerek Yoktur",null,null,null,null,null,1,1,1,"Çok Düşük","Devretmek","Gerek Yoktur"]
[9,null,null,null,null,1,1,1,"Çok Düşük","Devretmek","Gerek Yoktur",null,null,null,null,null,1,1,1,"Çok Düşük","Devretmek","Gerek Yoktur"]
[10,null,null,null,null,1,1,1,"Çok Düşük","Devretmek","Gerek Yoktur",null,null,null,null,null,1,1,1,"Çok Düşük","Devretmek","Gerek Yoktur"]
[11,null,null,null,null,1,1,1,"Çok Düşük","Devretmek","Gerek Yoktur",null,null,null,null,null,1,1,1,"Çok Düşük","Devretmek","Gerek Yoktur"]
[12,null,null,null,null,1,1,1,"Çok Düşük","Devretmek","Gerek Yoktur",null,null,null,null,null,1,1,1,"Çok Düşük","Devretmek","Gerek Yoktur"]
[13,null,null,null,null,1,1,1,"Çok Düşük","Devretmek","Gerek Yoktur",null,null,null,null,null,1,1,1,"Çok Düşük","Devretmek","Gerek Yoktur"]
[14,null,null,null,null,1,1,1,"Çok Düşük","Devretmek","Gerek Yoktur",null,null,null,null,null,1,1,1,"Çok Düşük","Devretmek","Gerek Yoktur"]
[15,null,null,null,null,1,1,1,"Çok Düşük","Devretmek","Gerek Yoktur",null,null,null,null,null,1,1,1,"Çok Düşük","Devretmek","Gerek Yoktur"]
[16,null,null,null,null,1,1,1,"Çok Düşük","Devretmek","Gerek Yoktur",null,null,null,null,null,1,1,1,"Çok Düşük","Devretmek","Gerek Yoktur"]
[17,null,null,null,null,1,1,1,"Çok Düşük","Devretmek","Gerek Yoktur",null,null,null,null,null,1,1,1,"Çok Düşük","Devretmek","Gerek Yoktur"]
[18,null,null,null,null,1,1,1,"Çok Düşük","Devretmek","Gerek Yoktur",null,null,null,null,null,1,1,1,"Çok Düşük","Devretmek","Gerek Yoktur"]
[19,null,null,null,null,1,1,1,"Çok Düşük","Devretmek","Gerek Yoktur",null,null,null,null,null,1,1,1,"Çok Düşük","Devretmek","Gerek Yoktur"]
[20,null,null,null,null,1,1,1,"Çok Düşük","Devretmek","Gerek Yoktur",null,null,null,null,null,1,1,1,"Çok Düşük","Devretmek","Gerek Yoktur"]
[21,null,null,null,null,1,1,1,"Çok Düşük","Devretmek","Gerek Yoktur",null,null,null,null,null,1,1,1,"Çok Düşük","Devretmek","Gerek Yoktur"]
[22,null,null,null,null,1,1,1,"Çok Düşük","Devretmek","Gerek Yoktur",null,null,null,null,null,1,1,1,"Çok Düşük","Devretmek","Gerek Yoktur"]
[23,null,null,null,null,1,1,1,"Çok Düşük","Devretmek","Gerek Yoktur",null,null,null,null,null,1,1,1,"Çok Düşük","Devretmek","Gerek Yoktur"]
[24,null,null,null,null,1,1,1,"Çok Düşük","Devretmek","Gerek Yoktur",null,null,null,null,null,1,1,1,"Çok Düşük","Devretmek","Gerek Yoktur"]
[25,null,null,null,null,1,1,1,"Çok Düşük","Devretmek","Gerek Yoktur",null,null,null,null,null,1,1,1,"Çok Düşük","Devretmek","Gerek Yoktur"]
[26,null,null,null,null,1,1,1,"Çok Düşük","Devretmek","Gerek Yoktur",null,null,null,null,null,1,1,1,"Çok Düşük","Devretmek","Gerek Yoktur"]
[27,null,null,null,null,1,1,1,"Çok Düşük","Devretmek","Gerek Yoktur",null,null,null,null,null,1,1,1,"Çok Düşük","Devretmek","Gerek Yoktur"]
[28,null,null,null,null,1,1,1,"Çok Düşük","Devretmek","Gerek Yoktur",null,null,null,null,null,1,1,1,"Çok Düşük","Devretmek","Gerek Yoktur"]
[29,null,null,null,null,1,1,1,"Çok Düşük","Devretmek","Gerek Yoktur",null,null,null,null,null,1,1,1,"Çok Düşük","Devretmek","Gerek Yoktur"]
[30,null,null,null,null,1,1,1,"Çok Düşük","Devretmek","Gerek Yoktur",null,null,null,null,null,1,1,1,"Çok Düşük","Devretmek","Gerek Yoktur"]
[31,null,null,null,null,1,1,1,"Çok Düşük","Devretmek","Gerek Yoktur",null,null,null,null,null,1,1,1,"Çok Düşük","Devretmek","Gerek Yoktur"]
[32,null,null,null,null,1,1,1,"Çok Düşük","Devretmek","Gerek Yoktur",null,null,null,null,null,1,1,1,"Çok Düşük","Devretmek","Gerek Yoktur"]
[33,null,null,null,null,1,1,1,"Çok Düşük","Devretmek","Gerek Yoktur",null,null,null,null,null,1,1,1,"Çok Düşük","Devretmek","Gerek Yoktur"]
[34,null,null,null,null,1,1,1,"Çok Düşük","Devretmek","Gerek Yoktur",null,null,null,null,null,1,1,1,"Çok Düşük","Devretmek","Gerek Yoktur"]
[35,null,null,null,null,1,1,1,"Çok Düşük","Devretmek","Gerek Yoktur",null,null,null,null,null,1,1,1,"Çok Düşük","Devretmek","Gerek Yoktur"]
[36,null,null,null,null,1,1,1,"Çok Düşük","Devretmek","Gerek Yoktur",null,null,null,null,null,1,1,1,"Çok Düşük","Devretmek","Gerek Yoktur"]
[37,null,null,null,null,1,1,1,"Çok Düşük","Devretmek","Gerek Yoktur",null,null,null,null,null,1,1,1,"Çok Düşük","Devretmek","Gerek Yoktur"]
[38,null,null,null,null,1,1,1,"Çok Düşük","Devretmek","Gerek Yoktur",null,null,null,null,null,1,1,1,"Çok Düşük","Devretmek","Gerek Yoktur"]
[39,null,null,null,null,1,1,1,"Çok Düşük","Devretmek","Gerek Yoktur",null,null,null,null,null,1,1,1,"Çok Düşük","Devretmek","Gerek Yoktur"]
[40,null,null,null,null,1,1,1,"Çok Düşük","Devretmek","Gerek Yoktur",null,null,null,null,null,1,1,1,"Çok Düşük","Devretmek","Gerek Yoktur"]
[41,null,null,null,null,1,1,1,"Çok Düşük","Devretmek","Gerek Yoktur",null,null,null,null,null,1,1,1,"Çok Düşük","Devretmek","Gerek Yoktur"]
[42,null,null,null,null,1,1,1,"Çok Düşük","Devretmek","Gerek Yoktur",null,null,null,null,null,1,1,1,"Çok Düşük","Devretmek","Gerek Yoktur"]
[43,null,null,null,null,1,1,1,"Çok Düşük","Devretmek","Gerek Yoktur",null,null,null,null,null,1,1,1,"Çok Düşük","Devretmek","Gerek Yoktur"]
[44,null,null,null,null,1,1,1,"Çok Düşük","Devretmek","Gerek Yoktur",null,null,null,null,null,1,1,1,"Çok Düşük","Devretmek","Gerek Yoktur"]
[45,null,null,null,null,1,1,1,"Çok Düşük","Devretmek","Gerek Yoktur",null,null,null,null,null,1,1,1,"Çok Düşük","Devretmek","Gerek Yoktur"]
[46,null,null,null,null,1,1,1,"Çok Düşük","Devretmek","Gerek Yoktur",null,null,null,null,null,1,1,1,"Çok Düşük","Devretmek","Gerek Yoktur"]
[47,null,null,null,null,1,1,1,"Çok Düşük","Devretmek","Gerek Yoktur",null,null,null,null,null,1,1,1,"Çok Düşük","Devretmek","Gerek Yoktur"]
[48,null,null,null,null,1,1,1,"Çok Düşük","Devretmek","Gerek Yoktur",null,null,null,null,null,1,1,1,"Çok Düşük","Devretmek","Gerek Yoktur"]
[49,null,null,null,null,1,1,1,"Çok Düşük","Devretmek","Gerek Yoktur",null,null,null,null,null,1,1,1,"Çok Düşük","Devretmek","Gerek Yoktur"]
[50,null,null,null,null,1,1,1,"Çok Düşük","Devretmek","Gerek Yoktur",null,null,null,null,null,1,1,1,"Çok Düşük","Devretmek","Gerek Yoktur"]
[51,null,null,null,null,1,1,1,"Çok Düşük","Devretmek","Gerek Yoktur",null,null,null,null,null,1,1,1,"Çok Düşük","Devretmek","Gerek Yoktur"]
[52,null,null,null,null,1,1,1,"Çok Düşük","Devretmek","Gerek Yoktur",null,null,null,null,null,1,1,1,"Çok Düşük","Devretmek","Gerek Yoktur"]
[53,null,null,null,null,1,1,1,"Çok Düşük","Devretmek","Gerek Yoktur",null,null,null,null,null,1,1,1,"Çok Düşük","Devretmek","Gerek Yoktur"]
[54,null,null,null,null,1,1,1,"Çok Düşük","Devretmek","Gerek Yoktur",null,null,null,null,null,1,1,1,"Çok Düşük","Devretmek","Gerek Yoktur"]
[55,null,null,null,null,1,1,1,"Çok Düşük","Devretmek","Gerek Yoktur",null,null,null,null,null,1,1,1,"Çok Düşük","Devretmek","Gerek Yoktur"]
[56,null,null,null,null,1,1,1,"Çok Düşük","Devretmek","Gerek Yoktur",null,null,null,null,null,1,1,1,"Çok Düşük","Devretmek","Gerek Yoktur"]
[57,null,null,null,null,1,1,1,"Çok Düşük","Devretmek","Gerek Yoktur",null,null,null,null,null,1,1,1,"Çok Düşük","Devretmek","Gerek Yoktur"]
[58,null,null,null,null,1,1,1,"Çok Düşük","Devretmek","Gerek Yoktur",null,null,null,null,null,1,1,1,"Çok Düşük","Devretmek","Gerek Yoktur"]
[59,null,null,null,null,1,1,1,"Çok Düşük","Devretmek","Gerek Yoktur",null,null,null,null,null,1,1,1,"Çok Düşük","Devretmek","Gerek Yoktur"]
[60,null,null,null,null,1,1,1,"Çok Düşük","Devretmek","Gerek Yoktur",null,null,null,null,null,1,1,1,"Çok Düşük","Devretmek","Gerek Yoktur"]
[61,null,null,null,null,1,1,1,"Çok Düşük","Devretmek","Gerek Yoktur",null,null,null,null,null,1,1,1,"Çok Düşük","Devretmek","Gerek Yoktur"]
[62,null,null,null,null,1,1,1,"Çok Düşük","Devretmek","Gerek Yoktur",null,null,null,null,null,1,1,1,"Çok Düşük","Devretmek","Gerek Yoktur"]
[63,null,null,null,null,1,1,1,"Çok Düşük","Devretmek","Gerek Yoktur",null,null,null,null,null,1,1,1,"Çok Düşük","Devretmek","Gerek Yoktur"]
[64,null,null,null,null,1,1,1,"Çok Düşük","Devretmek","Gerek Yoktur",null,null,null,null,null,1,1,1,"Çok Düşük","Devretmek","Gerek Yoktur"]
[65,null,null,null,null,1,1,1,{"$f":"IF(H69<=4,\"Çok Düşük\",(IF(H69<=8,\"Düşük\",(IF(H69<=14,\"Orta\",(IF(H69<=19,\"Yüksek\",(IF(H69<=25,\"Çok Yüksek\",)))))))))","v":"Çok Düşük"},"Devretmek","Gerek Yoktur",null,null,null,null,null,1,1,1,{"$f":"IF(S69<=4,\"Çok Düşük\",(IF(S69<=8,\"Düşük\",(IF(S69<=14,\"Orta\",(IF(S69<=19,\"Yüksek\",(IF(S69<=25,\"Çok Yüksek\",)))))))))","v":"Çok Düşük"},"Devretmek","Gerek Yoktur"]
[66,null,null,null,null,1,1,1,"Çok Düşük","Devretmek","Gerek Yoktur",null,null,null,null,null,1,1,1,"Çok Düşük","Devretmek","Gerek Yoktur"]
[67,null,null,null,null,1,1,1,"Çok Düşük","Devretmek","Gerek Yoktur",null,null,null,null,null,1,1,1,"Çok Düşük","Devretmek","Gerek Yoktur"]
[68,null,null,null,null,1,1,1,"Çok Düşük","Devretmek","Gerek Yoktur",null,null,null,null,null,1,1,1,"Çok Düşük","Devretmek","Gerek Yoktur"]
[69,null,null,null,null,1,1,1,"Çok Düşük","Devretmek","Gerek Yoktur",null,null,null,null,null,1,1,1,"Çok Düşük","Devretmek","Gerek Yoktur"]
[70,null,null,null,null,1,1,{"$f":"F74*G74","v":1},"Çok Düşük","Devretmek",{"$f":"IF(H74<=12,\"Gerek Yoktur\",(IF(H74<=25,\"Gereklidir\")))","v":"Gerek Yoktur"},null,null,null,null,null,1,1,{"$f":"Q74*R74","v":1},"Çok Düşük","Devretmek",{"$f":"IF(S74<=12,\"Gerek Yoktur\",(IF(S74<=25,\"Gereklidir\")))","v":"Gerek Yoktur"}]
[71,null,null,null,null,1,1,1,"Çok Düşük","Devretmek","Gerek Yoktur",null,null,null,null,null,1,1,1,"Çok Düşük","Devretmek","Gerek Yoktur"]
[72,null,null,null,null,1,1,1,"Çok Düşük","Devretmek","Gerek Yoktur",null,null,null,null,null,1,1,1,"Çok Düşük","Devretmek","Gerek Yoktur"]
[73,null,null,null,null,1,1,1,"Çok Düşük","Devretmek","Gerek Yoktur",null,null,null,null,null,1,1,1,"Çok Düşük","Devretmek","Gerek Yoktur"]
[74,null,null,null,null,1,1,1,"Çok Düşük","Devretmek","Gerek Yoktur",null,null,null,null,null,1,1,1,"Çok Düşük","Devretmek","Gerek Yoktur"]
[75,null,null,null,null,1,1,1,"Çok Düşük","Devretmek","Gerek Yoktur",null,null,null,null,null,1,1,1,"Çok Düşük","Devretmek","Gerek Yoktur"]
[76,null,null,null,null,1,1,1,"Çok Düşük","Devretmek","Gerek Yoktur",null,null,null,null,null,1,1,1,"Çok Düşük","Devretmek","Gerek Yoktur"]
[77,null,null,null,null,1,1,1,"Çok Düşük","Devretmek","Gerek Yoktur",null,null,null,null,null,1,1,1,"Çok Düşük","Devretmek","Gerek Yoktur"]
[78,null,null,null,null,1,1,1,"Çok Düşük","Devretmek","Gerek Yoktur",null,null,null,null,null,1,1,1,"Çok Düşük","Devretmek","Gerek Yoktur"]
[79,null,null,null,null,1,1,1,"Çok Düşük","Devretmek","Gerek Yoktur",null,null,null,null,null,1,1,1,"Çok Düşük","Devretmek","Gerek Yoktur"]
[80,null,null,null,null,1,1,1,"Çok Düşük","Devretmek","Gerek Yoktur",null,null,null,null,null,1,1,1,"Çok Düşük","Devretmek","Gerek Yoktur"]
[81,null,null,null,null,1,1,1,"Çok Düşük","Devretmek","Gerek Yoktur",null,null,null,null,null,1,1,1,"Çok Düşük","Devretmek","Gerek Yoktur"]
[82,null,null,null,null,1,1,1,"Çok Düşük","Devretmek","Gerek Yoktur",null,null,null,null,null,1,1,1,"Çok Düşük","Devretmek","Gerek Yoktur"]
[83,null,null,null,null,1,1,1,"Çok Düşük","Devretmek","Gerek Yoktur",null,null,null,null,null,1,1,1,"Çok Düşük","Devretmek","Gerek Yoktur"]
[84,null,null,null,null,1,1,1,"Çok Düşük","Devretmek","Gerek Yoktur",null,null,null,null,null,1,1,1,"Çok Düşük","Devretmek","Gerek Yoktur"]
[85,null,null,null,null,1,1,1,"Çok Düşük","Devretmek","Gerek Yoktur",null,null,null,null,null,1,1,1,"Çok Düşük","Devretmek","Gerek Yoktur"]
[86,null,null,null,null,1,1,1,"Çok Düşük","Devretmek","Gerek Yoktur",null,null,null,null,null,1,1,1,"Çok Düşük","Devretmek","Gerek Yoktur"]
[87,null,null,null,null,1,1,1,"Çok Düşük","Devretmek","Gerek Yoktur",null,null,null,null,null,1,1,1,"Çok Düşük","Devretmek","Gerek Yoktur"]
[88,null,null,null,null,1,1,1,"Çok Düşük","Devretmek","Gerek Yoktur",null,null,null,null,null,1,1,1,"Çok Düşük","Devretmek","Gerek Yoktur"]
[89,null,null,null,null,1,1,1,"Çok Düşük","Devretmek","Gerek Yoktur",null,null,null,null,null,1,1,1,"Çok Düşük","Devretmek","Gerek Yoktur"]
[90,null,null,null,null,1,1,1,"Çok Düşük","Devretmek","Gerek Yoktur",null,null,null,null,null,1,1,1,"Çok Düşük","Devretmek","Gerek Yoktur"]
[91,null,null,null,null,1,1,1,"Çok Düşük","Devretmek","Gerek Yoktur",null,null,null,null,null,1,1,1,"Çok Düşük","Devretmek","Gerek Yoktur"]
[92,null,null,null,null,1,1,1,"Çok Düşük","Devretmek","Gerek Yoktur",null,null,null,null,null,1,1,1,"Çok Düşük","Devretmek","Gerek Yoktur"]
[93,null,null,null,null,1,1,1,"Çok Düşük","Devretmek","Gerek Yoktur",null,null,null,null,null,1,1,1,"Çok Düşük","Devretmek","Gerek Yoktur"]
[94,null,null,null,null,1,1,1,"Çok Düşük","Devretmek","Gerek Yoktur",null,null,null,null,null,1,1,1,"Çok Düşük","Devretmek","Gerek Yoktur"]
[95,null,null,null,null,1,1,1,"Çok Düşük","Devretmek","Gerek Yoktur",null,null,null,null,null,1,1,1,"Çok Düşük","Devretmek","Gerek Yoktur"]
[96,null,null,null,null,1,1,1,"Çok Düşük","Devretmek","Gerek Yoktur",null,null,null,null,null,1,1,1,"Çok Düşük","Devretmek","Gerek Yoktur"]
[97,null,null,null,null,1,1,1,"Çok Düşük","Devretmek","Gerek Yoktur",null,null,null,null,null,1,1,1,"Çok Düşük","Devretmek","Gerek Yoktur"]
[98,null,null,null,null,1,1,1,"Çok Düşük","Devretmek","Gerek Yoktur",null,null,null,null,null,1,1,1,"Çok Düşük","Devretmek","Gerek Yoktur"]
[99,null,null,null,null,1,1,1,"Çok Düşük","Devretmek","Gerek Yoktur",null,null,null,null,null,1,1,1,"Çok Düşük","Devretmek","Gerek Yoktur"]
[100,null,null,null,null,1,1,1,"Çok Düşük","Devretmek","Gerek Yoktur",null,null,null,null,null,1,1,1,"Çok Düşük","Devretmek","Gerek Yoktur"]
[101,null,null,null,null,1,1,1,"Çok Düşük","Devretmek","Gerek Yoktur",null,null,null,null,null,1,1,1,"Çok Düşük","Devretmek","Gerek Yoktur"]
[102,null,null,null,null,1,1,1,"Çok Düşük","Devretmek","Gerek Yoktur",null,null,null,null,null,1,1,1,"Çok Düşük","Devretmek","Gerek Yoktur"]
[103,null,null,null,null,1,1,1,"Çok Düşük","Devretmek","Gerek Yoktur",null,null,null,null,null,1,1,1,"Çok Düşük","Devretmek","Gerek Yoktur"]
[104,null,null,null,null,1,1,1,"Çok Düşük","Devretmek","Gerek Yoktur",null,null,null,null,null,1,1,1,"Çok Düşük","Devretmek","Gerek Yoktur"]
[105,null,null,null,null,1,1,1,"Çok Düşük","Devretmek","Gerek Yoktur",null,null,null,null,null,1,1,1,"Çok Düşük","Devretmek","Gerek Yoktur"]
[106,null,null,null,null,1,1,1,"Çok Düşük","Devretmek","Gerek Yoktur",null,null,null,null,null,1,1,1,"Çok Düşük","Devretmek","Gerek Yoktur"]
[107,null,null,null,null,1,1,1,"Çok Düşük","Devretmek","Gerek Yoktur",null,null,null,null,null,1,1,1,"Çok Düşük","Devretmek","Gerek Yoktur"]
[108,null,null,null,null,1,1,1,"Çok Düşük","Devretmek","Gerek Yoktur",null,null,null,null,null,1,1,1,"Çok Düşük","Devretmek","Gerek Yoktur"]
[109,null,null,null,null,1,1,1,"Çok Düşük","Devretmek","Gerek Yoktur",null,null,null,null,null,1,1,1,"Çok Düşük","Devretmek","Gerek Yoktur"]
[110,null,null,null,null,1,1,1,"Çok Düşük","Devretmek","Gerek Yoktur",null,null,null,null,null,1,1,1,"Çok Düşük","Devretmek","Gerek Yoktur"]
[111,null,null,null,null,1,1,1,"Çok Düşük","Devretmek","Gerek Yoktur",null,null,null,null,null,1,1,1,"Çok Düşük","Devretmek","Gerek Yoktur"]
[112,null,null,null,null,1,1,1,"Çok Düşük","Devretmek","Gerek Yoktur",null,null,null,null,null,1,1,1,"Çok Düşük","Devretmek","Gerek Yoktur"]
[113,null,null,null,null,1,1,1,"Çok Düşük","Devretmek","Gerek Yoktur",null,null,null,null,null,1,1,1,"Çok Düşük","Devretmek","Gerek Yoktur"]
[114,null,null,null,null,1,1,1,"Çok Düşük","Devretmek","Gerek Yoktur",null,null,null,null,null,1,1,1,"Çok Düşük","Devretmek","Gerek Yoktur"]
[115,null,null,null,null,1,1,1,"Çok Düşük","Devretmek","Gerek Yoktur",null,null,null,null,null,1,1,1,"Çok Düşük","Devretmek","Gerek Yoktur"]
[116,null,null,null,null,1,1,1,"Çok Düşük","Devretmek","Gerek Yoktur",null,null,null,null,null,1,1,1,"Çok Düşük","Devretmek","Gerek Yoktur"]
[117,null,null,null,null,1,1,1,"Çok Düşük","Devretmek","Gerek Yoktur",null,null,null,null,null,1,1,1,"Çok Düşük","Devretmek","Gerek Yoktur"]
[118,null,null,null,null,1,1,1,"Çok Düşük","Devretmek","Gerek Yoktur",null,null,null,null,null,1,1,1,"Çok Düşük","Devretmek","Gerek Yoktur"]
[119,null,null,null,null,1,1,1,"Çok Düşük","Devretmek","Gerek Yoktur",null,null,null,null,null,1,1,1,"Çok Düşük","Devretmek","Gerek Yoktur"]
[120,null,null,null,null,1,1,1,"Çok Düşük","Devretmek","Gerek Yoktur",null,null,null,null,null,1,1,1,"Çok Düşük","Devretmek","Gerek Yoktur"]
[121,null,null,null,null,1,1,1,"Çok Düşük","Devretmek","Gerek Yoktur",null,null,null,null,null,1,1,1,"Çok Düşük","Devretmek","Gerek Yoktur"]
[122,null,null,null,null,1,1,1,"Çok Düşük","Devretmek","Gerek Yoktur",null,null,null,null,null,1,1,1,"Çok Düşük","Devretmek","Gerek Yoktur"]
[123,null,null,null,null,1,1,1,"Çok Düşük","Devretmek","Gerek Yoktur",null,null,null,null,null,1,1,1,"Çok Düşük","Devretmek","Gerek Yoktur"]
[124,null,null,null,null,1,1,1,"Çok Düşük","Devretmek","Gerek Yoktur",null,null,null,null,null,1,1,1,"Çok Düşük","Devretmek","Gerek Yoktur"]
[125,null,null,null,null,1,1,1,"Çok Düşük","Devretmek","Gerek Yoktur",null,null,null,null,null,1,1,1,"Çok Düşük","Devretmek","Gerek Yoktur"]
[126,null,null,null,null,1,1,1,"Çok Düşük","Devretmek","Gerek Yoktur",null,null,null,null,null,1,1,1,"Çok Düşük","Devretmek","Gerek Yoktur"]
[127,null,null,null,null,1,1,1,"Çok Düşük","Devretmek","Gerek Yoktur",null,null,null,null,null,1,1,1,"Çok Düşük","Devretmek","Gerek Yoktur"]
[128,null,null,null,null,1,1,1,"Çok Düşük","Devretmek","Gerek Yoktur",null,null,null,null,null,1,1,1,"Çok Düşük","Devretmek","Gerek Yoktur"]
[129,null,null,null,null,1,1,1,{"$f":"IF(H133<=4,\"Çok Düşük\",(IF(H133<=8,\"Düşük\",(IF(H133<=14,\"Orta\",(IF(H133<=19,\"Yüksek\",(IF(H133<=25,\"Çok Yüksek\",)))))))))","v":"Çok Düşük"},"Devretmek","Gerek Yoktur",null,null,null,null,null,1,1,1,{"$f":"IF(S133<=4,\"Çok Düşük\",(IF(S133<=8,\"Düşük\",(IF(S133<=14,\"Orta\",(IF(S133<=19,\"Yüksek\",(IF(S133<=25,\"Çok Yüksek\",)))))))))","v":"Çok Düşük"},"Devretmek","Gerek Yoktur"]
[130,null,null,null,null,1,1,1,"Çok Düşük","Devretmek","Gerek Yoktur",null,null,null,null,null,1,1,1,"Çok Düşük","Devretmek","Gerek Yoktur"]
[131,null,null,null,null,1,1,1,"Çok Düşük","Devretmek","Gerek Yoktur",null,null,null,null,null,1,1,1,"Çok Düşük","Devretmek","Gerek Yoktur"]
[132,null,null,null,null,1,1,1,"Çok Düşük","Devretmek","Gerek Yoktur",null,null,null,null,null,1,1,1,"Çok Düşük","Devretmek","Gerek Yoktur"]
[133,null,null,null,null,1,1,1,"Çok Düşük","Devretmek","Gerek Yoktur",null,null,null,null,null,1,1,1,"Çok Düşük","Devretmek","Gerek Yoktur"]
[134,null,null,null,null,1,1,{"$f":"F138*G138","v":1},"Çok Düşük","Devretmek",{"$f":"IF(H138<=12,\"Gerek Yoktur\",(IF(H138<=25,\"Gereklidir\")))","v":"Gerek Yoktur"},null,null,null,null,null,1,1,{"$f":"Q138*R138","v":1},"Çok Düşük","Devretmek",{"$f":"IF(S138<=12,\"Gerek Yoktur\",(IF(S138<=25,\"Gereklidir\")))","v":"Gerek Yoktur"}]
[135,null,null,null,null,1,1,1,"Çok Düşük","Devretmek","Gerek Yoktur",null,null,null,null,null,1,1,1,"Çok Düşük","Devretmek","Gerek Yoktur"]
[136,null,null,null,null,1,1,1,"Çok Düşük","Devretmek","Gerek Yoktur",null,null,null,null,null,1,1,1,"Çok Düşük","Devretmek","Gerek Yoktur"]
[137,null,null,null,null,1,1,1,"Çok Düşük","Devretmek","Gerek Yoktur",null,null,null,null,null,1,1,1,"Çok Düşük","Devretmek","Gerek Yoktur"]
[138,null,null,null,null,1,1,1,"Çok Düşük","Devretmek","Gerek Yoktur",null,null,null,null,null,1,1,1,"Çok Düşük","Devretmek","Gerek Yoktur"]
[139,null,null,null,null,1,1,1,"Çok Düşük","Devretmek","Gerek Yoktur",null,null,null,null,null,1,1,1,"Çok Düşük","Devretmek","Gerek Yoktur"]
[140,null,null,null,null,1,1,1,"Çok Düşük","Devretmek","Gerek Yoktur",null,null,null,null,null,1,1,1,"Çok Düşük","Devretmek","Gerek Yoktur"]
[141,null,null,null,null,1,1,1,"Çok Düşük","Devretmek","Gerek Yoktur",null,null,null,null,null,1,1,1,"Çok Düşük","Devretmek","Gerek Yoktur"]
[142,null,null,null,null,1,1,1,"Çok Düşük","Devretmek","Gerek Yoktur",null,null,null,null,null,1,1,1,"Çok Düşük","Devretmek","Gerek Yoktur"]
[143,null,null,null,null,1,1,1,"Çok Düşük","Devretmek","Gerek Yoktur",null,null,null,null,null,1,1,1,"Çok Düşük","Devretmek","Gerek Yoktur"]
[144,null,null,null,null,1,1,1,"Çok Düşük","Devretmek","Gerek Yoktur",null,null,null,null,null,1,1,1,"Çok Düşük","Devretmek","Gerek Yoktur"]
[145,null,null,null,null,1,1,1,"Çok Düşük","Devretmek","Gerek Yoktur",null,null,null,null,null,1,1,1,"Çok Düşük","Devretmek","Gerek Yoktur"]
[146,null,null,null,null,1,1,1,"Çok Düşük","Devretmek","Gerek Yoktur",null,null,null,null,null,1,1,1,"Çok Düşük","Devretmek","Gerek Yoktur"]
[147,null,null,null,null,1,1,1,"Çok Düşük","Devretmek","Gerek Yoktur",null,null,null,null,null,1,1,1,"Çok Düşük","Devretmek","Gerek Yoktur"]
[148,null,null,null,null,1,1,1,"Çok Düşük","Devretmek","Gerek Yoktur",null,null,null,null,null,1,1,1,"Çok Düşük","Devretmek","Gerek Yoktur"]
[149,null,null,null,null,1,1,1,"Çok Düşük","Devretmek","Gerek Yoktur",null,null,null,null,null,1,1,1,"Çok Düşük","Devretmek","Gerek Yoktur"]
[150,null,null,null,null,1,1,1,"Çok Düşük","Devretmek","Gerek Yoktur",null,null,null,null,null,1,1,1,"Çok Düşük","Devretmek","Gerek Yoktur"]

{"sheet":"Yönetsel","index":5,"n_rows":154,"n_cols":22,"rows_kept":154,"cut":false,"hidden":false,"merged":[[2,16,2,21],[0,2,1,21],[0,0,1,1],[2,0,3,0],[2,1,3,1],[2,3,2,10],[2,11,2,15]]}
[{"$error":"#VALUE!"},null,"YÖNETSEL SÜREÇLER\nRİSK ANALİZİ"]
[]
["SIRA","İLGİLİ BİRİM","Doküman No: FRM-0348\nYayın Tarihi: 03.10.2024\nRevizyon Tarihi: 03.10.2024\nRevizyon No: 00","A (Mevcut Durum)",null,null,null,null,null,null,null,"B (Önlemlerin Alınmasından Sonra Yapılan Risk Değerlendirmesi)",null,null,null,null,"C (Sonuç)"]
[null,null,"Risk Tanımı","Risk Giderici Mevcut Faaliyet","İlgili Belge","Etki","Olasılık","Puan","Risk Derecesi","Karar","İyileştirme","Risk Giderme Yöntemi (Düzeltici ve Önleyici Kontrol Tedbirleri)","Sorumlu (Birim/Kişi)","Termin \n(Bitiş Tarihi)","Kaynak","Sonuçlar nasıl değerlendirilecek?","Etki","Olasılık","Puan","Risk Derecesi","Karar","İyileştirme"]
[1,"Hilvan Meslek Yüksekokulu ","Bina Dış cephesinden yağmur suyunun sızması ","İlgili birimlerce gerekli bakım, onarım çalışmasının yapılması ","Yapı İşleri Daire Başkanlığına yazı yazılmıştır.",3,5,{"$f":"F5*G5","v":15},{"$f":"IF(H5<=4,\"Çok Düşük\",(IF(H5<=8,\"Düşük\",(IF(H5<=14,\"Orta\",(IF(H5<=19,\"Yüksek\",(IF(H5<=25,\"Çok Yüksek\",)))))))))","v":"Yüksek"},"Devretmek",{"$f":"IF(H5<=12,\"Gerek Yoktur\",(IF(H5<=25,\"Gereklidir\")))","v":"Gereklidir"},null,null,null,null,null,1,1,{"$f":"Q5*R5","v":1},{"$f":"IF(S5<=4,\"Çok Düşük\",(IF(S5<=8,\"Düşük\",(IF(S5<=14,\"Orta\",(IF(S5<=19,\"Yüksek\",(IF(S5<=25,\"Çok Yüksek\",)))))))))","v":"Çok Düşük"},"Devretmek",{"$f":"IF(S5<=12,\"Gerek Yoktur\",(IF(S5<=25,\"Gereklidir\")))","v":"Gerek Yoktur"}]
[2,"Hilvan Meslek Yüksekokulu ","Öğretim üye ve elemanlarının bilimsel toplantılara ve sempozyumlara katılmaları için ayrılan bütçenin günümüz koşulları düşünüldüğünde yeterli olamama riski","Kalite sürecinin takip edilmesiyle birlikte bilimsel toplantılara ve sempozyuma katılan öğretim elemanına gerekli bütçenin temin edilmesi",null,3,1,3,"Çok Düşük","Kaçınmak","Gerek Yoktur",null,null,null,null,null,1,1,1,"Çok Düşük","Devretmek","Gerek Yoktur"]
[3,null,null,null,null,1,1,1,"Çok Düşük","Devretmek","Gerek Yoktur",null,null,null,null,null,1,1,1,"Çok Düşük","Devretmek","Gerek Yoktur"]
[4,null,null,null,null,1,1,1,"Çok Düşük","Devretmek","Gerek Yoktur",null,null,null,null,null,1,1,1,"Çok Düşük","Devretmek","Gerek Yoktur"]
[5,null,null,null,null,1,1,{"$f":"F9*G9","v":1},{"$f":"IF(H9<=4,\"Çok Düşük\",(IF(H9<=8,\"Düşük\",(IF(H9<=14,\"Orta\",(IF(H9<=19,\"Yüksek\",(IF(H9<=25,\"Çok Yüksek\",)))))))))","v":"Çok Düşük"},"Devretmek",{"$f":"IF(H9<=12,\"Gerek Yoktur\",(IF(H9<=25,\"Gereklidir\")))","v":"Gerek Yoktur"},null,null,null,null,null,1,1,{"$f":"Q9*R9","v":1},{"$f":"IF(S9<=4,\"Çok Düşük\",(IF(S9<=8,\"Düşük\",(IF(S9<=14,\"Orta\",(IF(S9<=19,\"Yüksek\",(IF(S9<=25,\"Çok Yüksek\",)))))))))","v":"Çok Düşük"},"Devretmek",{"$f":"IF(S9<=12,\"Gerek Yoktur\",(IF(S9<=25,\"Gereklidir\")))","v":"Gerek Yoktur"}]
[6,null,null,null,null,1,1,{"$f":"F10*G10","v":1},"Çok Düşük","Devretmek",{"$f":"IF(H10<=12,\"Gerek Yoktur\",(IF(H10<=25,\"Gereklidir\")))","v":"Gerek Yoktur"},null,null,null,null,null,1,1,{"$f":"Q10*R10","v":1},"Çok Düşük","Devretmek",{"$f":"IF(S10<=12,\"Gerek Yoktur\",(IF(S10<=25,\"Gereklidir\")))","v":"Gerek Yoktur"}]
[7,null,null,null,null,1,1,1,"Çok Düşük","Devretmek","Gerek Yoktur",null,null,null,null,null,1,1,1,"Çok Düşük","Devretmek","Gerek Yoktur"]
[8,null,null,null,null,1,1,1,"Çok Düşük","Devretmek","Gerek Yoktur",null,null,null,null,null,1,1,1,"Çok Düşük","Devretmek","Gerek Yoktur"]
[9,null,null,null,null,1,1,1,"Çok Düşük","Devretmek","Gerek Yoktur",null,null,null,null,null,1,1,1,"Çok Düşük","Devretmek","Gerek Yoktur"]
[10,null,null,null,null,1,1,1,"Çok Düşük","Devretmek","Gerek Yoktur",null,null,null,null,null,1,1,1,"Çok Düşük","Devretmek","Gerek Yoktur"]
[11,null,null,null,null,1,1,1,"Çok Düşük","Devretmek","Gerek Yoktur",null,null,null,null,null,1,1,1,"Çok Düşük","Devretmek","Gerek Yoktur"]
[12,null,null,null,null,1,1,1,"Çok Düşük","Devretmek","Gerek Yoktur",null,null,null,null,null,1,1,1,"Çok Düşük","Devretmek","Gerek Yoktur"]
[13,null,null,null,null,1,1,1,"Çok Düşük","Devretmek","Gerek Yoktur",null,null,null,null,null,1,1,1,"Çok Düşük","Devretmek","Gerek Yoktur"]
[14,null,null,null,null,1,1,1,"Çok Düşük","Devretmek","Gerek Yoktur",null,null,null,null,null,1,1,1,"Çok Düşük","Devretmek","Gerek Yoktur"]
[15,null,null,null,null,1,1,1,"Çok Düşük","Devretmek","Gerek Yoktur",null,null,null,null,null,1,1,1,"Çok Düşük","Devretmek","Gerek Yoktur"]
[16,null,null,null,null,1,1,1,"Çok Düşük","Devretmek","Gerek Yoktur",null,null,null,null,null,1,1,1,"Çok Düşük","Devretmek","Gerek Yoktur"]
[17,null,null,null,null,1,1,1,"Çok Düşük","Devretmek","Gerek Yoktur",null,null,null,null,null,1,1,1,"Çok Düşük","Devretmek","Gerek Yoktur"]
[18,null,null,null,null,1,1,1,"Çok Düşük","Devretmek","Gerek Yoktur",null,null,null,null,null,1,1,1,"Çok Düşük","Devretmek","Gerek Yoktur"]
[19,null,null,null,null,1,1,1,"Çok Düşük","Devretmek","Gerek Yoktur",null,null,null,null,null,1,1,1,"Çok Düşük","Devretmek","Gerek Yoktur"]
[20,null,null,null,null,1,1,1,"Çok Düşük","Devretmek","Gerek Yoktur",null,null,null,null,null,1,1,1,"Çok Düşük","Devretmek","Gerek Yoktur"]
[21,null,null,null,null,1,1,1,"Çok Düşük","Devretmek","Gerek Yoktur",null,null,null,null,null,1,1,1,"Çok Düşük","Devretmek","Gerek Yoktur"]
[22,null,null,null,null,1,1,1,"Çok Düşük","Devretmek","Gerek Yoktur",null,null,null,null,null,1,1,1,"Çok Düşük","Devretmek","Gerek Yoktur"]
[23,null,null,null,null,1,1,1,"Çok Düşük","Devretmek","Gerek Yoktur",null,null,null,null,null,1,1,1,"Çok Düşük","Devretmek","Gerek Yoktur"]
[24,null,null,null,null,1,1,1,"Çok Düşük","Devretmek","Gerek Yoktur",null,null,null,null,null,1,1,1,"Çok Düşük","Devretmek","Gerek Yoktur"]
[25,null,null,null,null,1,1,1,"Çok Düşük","Devretmek","Gerek Yoktur",null,null,null,null,null,1,1,1,"Çok Düşük","Devretmek","Gerek Yoktur"]
[26,null,null,null,null,1,1,1,"Çok Düşük","Devretmek","Gerek Yoktur",null,null,null,null,null,1,1,1,"Çok Düşük","Devretmek","Gerek Yoktur"]
[27,null,null,null,null,1,1,1,"Çok Düşük","Devretmek","Gerek Yoktur",null,null,null,null,null,1,1,1,"Çok Düşük","Devretmek","Gerek Yoktur"]
[28,null,null,null,null,1,1,1,"Çok Düşük","Devretmek","Gerek Yoktur",null,null,null,null,null,1,1,1,"Çok Düşük","Devretmek","Gerek Yoktur"]
[29,null,null,null,null,1,1,1,"Çok Düşük","Devretmek","Gerek Yoktur",null,null,null,null,null,1,1,1,"Çok Düşük","Devretmek","Gerek Yoktur"]
[30,null,null,null,null,1,1,1,"Çok Düşük","Devretmek","Gerek Yoktur",null,null,null,null,null,1,1,1,"Çok Düşük","Devretmek","Gerek Yoktur"]
[31,null,null,null,null,1,1,1,"Çok Düşük","Devretmek","Gerek Yoktur",null,null,null,null,null,1,1,1,"Çok Düşük","Devretmek","Gerek Yoktur"]
[32,null,null,null,null,1,1,1,"Çok Düşük","Devretmek","Gerek Yoktur",null,null,null,null,null,1,1,1,"Çok Düşük","Devretmek","Gerek Yoktur"]
[33,null,null,null,null,1,1,1,"Çok Düşük","Devretmek","Gerek Yoktur",null,null,null,null,null,1,1,1,"Çok Düşük","Devretmek","Gerek Yoktur"]
[34,null,null,null,null,1,1,1,"Çok Düşük","Devretmek","Gerek Yoktur",null,null,null,null,null,1,1,1,"Çok Düşük","Devretmek","Gerek Yoktur"]
[35,null,null,null,null,1,1,1,"Çok Düşük","Devretmek","Gerek Yoktur",null,null,null,null,null,1,1,1,"Çok Düşük","Devretmek","Gerek Yoktur"]
[36,null,null,null,null,1,1,1,"Çok Düşük","Devretmek","Gerek Yoktur",null,null,null,null,null,1,1,1,"Çok Düşük","Devretmek","Gerek Yoktur"]
[37,null,null,null,null,1,1,1,"Çok Düşük","Devretmek","Gerek Yoktur",null,null,null,null,null,1,1,1,"Çok Düşük","Devretmek","Gerek Yoktur"]
[38,null,null,null,null,1,1,1,"Çok Düşük","Devretmek","Gerek Yoktur",null,null,null,null,null,1,1,1,"Çok Düşük","Devretmek","Gerek Yoktur"]
[39,null,null,null,null,1,1,1,"Çok Düşük","Devretmek","Gerek Yoktur",null,null,null,null,null,1,1,1,"Çok Düşük","Devretmek","Gerek Yoktur"]
[40,null,null,null,null,1,1,1,"Çok Düşük","Devretmek","Gerek Yoktur",null,null,null,null,null,1,1,1,"Çok Düşük","Devretmek","Gerek Yoktur"]
[41,null,null,null,null,1,1,1,"Çok Düşük","Devretmek","Gerek Yoktur",null,null,null,null,null,1,1,1,"Çok Düşük","Devretmek","Gerek Yoktur"]
[42,null,null,null,null,1,1,1,"Çok Düşük","Devretmek","Gerek Yoktur",null,null,null,null,null,1,1,1,"Çok Düşük","Devretmek","Gerek Yoktur"]
[43,null,null,null,null,1,1,1,"Çok Düşük","Devretmek","Gerek Yoktur",null,null,null,null,null,1,1,1,"Çok Düşük","Devretmek","Gerek Yoktur"]
[44,null,null,null,null,1,1,1,"Çok Düşük","Devretmek","Gerek Yoktur",null,null,null,null,null,1,1,1,"Çok Düşük","Devretmek","Gerek Yoktur"]
[45,null,null,null,null,1,1,1,"Çok Düşük","Devretmek","Gerek Yoktur",null,null,null,null,null,1,1,1,"Çok Düşük","Devretmek","Gerek Yoktur"]
[46,null,null,null,null,1,1,1,"Çok Düşük","Devretmek","Gerek Yoktur",null,null,null,null,null,1,1,1,"Çok Düşük","Devretmek","Gerek Yoktur"]
[47,null,null,null,null,1,1,1,"Çok Düşük","Devretmek","Gerek Yoktur",null,null,null,null,null,1,1,1,"Çok Düşük","Devretmek","Gerek Yoktur"]
[48,null,null,null,null,1,1,1,"Çok Düşük","Devretmek","Gerek Yoktur",null,null,null,null,null,1,1,1,"Çok Düşük","Devretmek","Gerek Yoktur"]
[49,null,null,null,null,1,1,1,"Çok Düşük","Devretmek","Gerek Yoktur",null,null,null,null,null,1,1,1,"Çok Düşük","Devretmek","Gerek Yoktur"]
[50,null,null,null,null,1,1,1,"Çok Düşük","Devretmek","Gerek Yoktur",null,null,null,null,null,1,1,1,"Çok Düşük","Devretmek","Gerek Yoktur"]
[51,null,null,null,null,1,1,1,"Çok Düşük","Devretmek","Gerek Yoktur",null,null,null,null,null,1,1,1,"Çok Düşük","Devretmek","Gerek Yoktur"]
[52,null,null,null,null,1,1,1,"Çok Düşük","Devretmek","Gerek Yoktur",null,null,null,null,null,1,1,1,"Çok Düşük","Devretmek","Gerek Yoktur"]
[53,null,null,null,null,1,1,1,"Çok Düşük","Devretmek","Gerek Yoktur",null,null,null,null,null,1,1,1,"Çok Düşük","Devretmek","Gerek Yoktur"]
[54,null,null,null,null,1,1,1,"Çok Düşük","Devretmek","Gerek Yoktur",null,null,null,null,null,1,1,1,"Çok Düşük","Devretmek","Gerek Yoktur"]
[55,null,null,null,null,1,1,1,"Çok Düşük","Devretmek","Gerek Yoktur",null,null,null,null,null,1,1,1,"Çok Düşük","Devretmek","Gerek Yoktur"]
[56,null,null,null,null,1,1,1,"Çok Düşük","Devretmek","Gerek Yoktur",null,null,null,null,null,1,1,1,"Çok Düşük","Devretmek","Gerek Yoktur"]
[57,null,null,null,null,1,1,1,"Çok Düşük","Devretmek","Gerek Yoktur",null,null,null,null,null,1,1,1,"Çok Düşük","Devretmek","Gerek Yoktur"]
[58,null,null,null,null,1,1,1,"Çok Düşük","Devretmek","Gerek Yoktur",null,null,null,null,null,1,1,1,"Çok Düşük","Devretmek","Gerek Yoktur"]
[59,null,null,null,null,1,1,1,"Çok Düşük","Devretmek","Gerek Yoktur",null,null,null,null,null,1,1,1,"Çok Düşük","Devretmek","Gerek Yoktur"]
[60,null,null,null,null,1,1,1,"Çok Düşük","Devretmek","Gerek Yoktur",null,null,null,null,null,1,1,1,"Çok Düşük","Devretmek","Gerek Yoktur"]
[61,null,null,null,null,1,1,1,"Çok Düşük","Devretmek","Gerek Yoktur",null,null,null,null,null,1,1,1,"Çok Düşük","Devretmek","Gerek Yoktur"]
[62,null,null,null,null,1,1,1,"Çok Düşük","Devretmek","Gerek Yoktur",null,null,null,null,null,1,1,1,"Çok Düşük","Devretmek","Gerek Yoktur"]
[63,null,null,null,null,1,1,1,"Çok Düşük","Devretmek","Gerek Yoktur",null,null,null,null,null,1,1,1,"Çok Düşük","Devretmek","Gerek Yoktur"]
[64,null,null,null,null,1,1,1,"Çok Düşük","Devretmek","Gerek Yoktur",null,null,null,null,null,1,1,1,"Çok Düşük","Devretmek","Gerek Yoktur"]
[65,null,null,null,null,1,1,1,{"$f":"IF(H69<=4,\"Çok Düşük\",(IF(H69<=8,\"Düşük\",(IF(H69<=14,\"Orta\",(IF(H69<=19,\"Yüksek\",(IF(H69<=25,\"Çok Yüksek\",)))))))))","v":"Çok Düşük"},"Devretmek","Gerek Yoktur",null,null,null,null,null,1,1,1,{"$f":"IF(S69<=4,\"Çok Düşük\",(IF(S69<=8,\"Düşük\",(IF(S69<=14,\"Orta\",(IF(S69<=19,\"Yüksek\",(IF(S69<=25,\"Çok Yüksek\",)))))))))","v":"Çok Düşük"},"Devretmek","Gerek Yoktur"]
[66,null,null,null,null,1,1,1,"Çok Düşük","Devretmek","Gerek Yoktur",null,null,null,null,null,1,1,1,"Çok Düşük","Devretmek","Gerek Yoktur"]
[67,null,null,null,null,1,1,1,"Çok Düşük","Devretmek","Gerek Yoktur",null,null,null,null,null,1,1,1,"Çok Düşük","Devretmek","Gerek Yoktur"]
[68,null,null,null,null,1,1,1,"Çok Düşük","Devretmek","Gerek Yoktur",null,null,null,null,null,1,1,1,"Çok Düşük","Devretmek","Gerek Yoktur"]
[69,null,null,null,null,1,1,1,"Çok Düşük","Devretmek","Gerek Yoktur",null,null,null,null,null,1,1,1,"Çok Düşük","Devretmek","Gerek Yoktur"]
[70,null,null,null,null,1,1,{"$f":"F74*G74","v":1},"Çok Düşük","Devretmek",{"$f":"IF(H74<=12,\"Gerek Yoktur\",(IF(H74<=25,\"Gereklidir\")))","v":"Gerek Yoktur"},null,null,null,null,null,1,1,{"$f":"Q74*R74","v":1},"Çok Düşük","Devretmek",{"$f":"IF(S74<=12,\"Gerek Yoktur\",(IF(S74<=25,\"Gereklidir\")))","v":"Gerek Yoktur"}]
[71,null,null,null,null,1,1,1,"Çok Düşük","Devretmek","Gerek Yoktur",null,null,null,null,null,1,1,1,"Çok Düşük","Devretmek","Gerek Yoktur"]
[72,null,null,null,null,1,1,1,"Çok Düşük","Devretmek","Gerek Yoktur",null,null,null,null,null,1,1,1,"Çok Düşük","Devretmek","Gerek Yoktur"]
[73,null,null,null,null,1,1,1,"Çok Düşük","Devretmek","Gerek Yoktur",null,null,null,null,null,1,1,1,"Çok Düşük","Devretmek","Gerek Yoktur"]
[74,null,null,null,null,1,1,1,"Çok Düşük","Devretmek","Gerek Yoktur",null,null,null,null,null,1,1,1,"Çok Düşük","Devretmek","Gerek Yoktur"]
[75,null,null,null,null,1,1,1,"Çok Düşük","Devretmek","Gerek Yoktur",null,null,null,null,null,1,1,1,"Çok Düşük","Devretmek","Gerek Yoktur"]
[76,null,null,null,null,1,1,1,"Çok Düşük","Devretmek","Gerek Yoktur",null,null,null,null,null,1,1,1,"Çok Düşük","Devretmek","Gerek Yoktur"]
[77,null,null,null,null,1,1,1,"Çok Düşük","Devretmek","Gerek Yoktur",null,null,null,null,null,1,1,1,"Çok Düşük","Devretmek","Gerek Yoktur"]
[78,null,null,null,null,1,1,1,"Çok Düşük","Devretmek","Gerek Yoktur",null,null,null,null,null,1,1,1,"Çok Düşük","Devretmek","Gerek Yoktur"]
[79,null,null,null,null,1,1,1,"Çok Düşük","Devretmek","Gerek Yoktur",null,null,null,null,null,1,1,1,"Çok Düşük","Devretmek","Gerek Yoktur"]
[80,null,null,null,null,1,1,1,"Çok Düşük","Devretmek","Gerek Yoktur",null,null,null,null,null,1,1,1,"Çok Düşük","Devretmek","Gerek Yoktur"]
[81,null,null,null,null,1,1,1,"Çok Düşük","Devretmek","Gerek Yoktur",null,null,null,null,null,1,1,1,"Çok Düşük","Devretmek","Gerek Yoktur"]
[82,null,null,null,null,1,1,1,"Çok Düşük","Devretmek","Gerek Yoktur",null,null,null,null,null,1,1,1,"Çok Düşük","Devretmek","Gerek Yoktur"]
[83,null,null,null,null,1,1,1,"Çok Düşük","Devretmek","Gerek Yoktur",null,null,null,null,null,1,1,1,"Çok Düşük","Devretmek","Gerek Yoktur"]
[84,null,null,null,null,1,1,1,"Çok Düşük","Devretmek","Gerek Yoktur",null,null,null,null,null,1,1,1,"Çok Düşük","Devretmek","Gerek Yoktur"]
[85,null,null,null,null,1,1,1,"Çok Düşük","Devretmek","Gerek Yoktur",null,null,null,null,null,1,1,1,"Çok Düşük","Devretmek","Gerek Yoktur"]
[86,null,null,null,null,1,1,1,"Çok Düşük","Devretmek","Gerek Yoktur",null,null,null,null,null,1,1,1,"Çok Düşük","Devretmek","Gerek Yoktur"]
[87,null,null,null,null,1,1,1,"Çok Düşük","Devretmek","Gerek Yoktur",null,null,null,null,null,1,1,1,"Çok Düşük","Devretmek","Gerek Yoktur"]
[88,null,null,null,null,1,1,1,"Çok Düşük","Devretmek","Gerek Yoktur",null,null,null,null,null,1,1,1,"Çok Düşük","Devretmek","Gerek Yoktur"]
[89,null,null,null,null,1,1,1,"Çok Düşük","Devretmek","Gerek Yoktur",null,null,null,null,null,1,1,1,"Çok Düşük","Devretmek","Gerek Yoktur"]
[90,null,null,null,null,1,1,1,"Çok Düşük","Devretmek","Gerek Yoktur",null,null,null,null,null,1,1,1,"Çok Düşük","Devretmek","Gerek Yoktur"]
[91,null,null,null,null,1,1,1,"Çok Düşük","Devretmek","Gerek Yoktur",null,null,null,null,null,1,1,1,"Çok Düşük","Devretmek","Gerek Yoktur"]
[92,null,null,null,null,1,1,1,"Çok Düşük","Devretmek","Gerek Yoktur",null,null,null,null,null,1,1,1,"Çok Düşük","Devretmek","Gerek Yoktur"]
[93,null,null,null,null,1,1,1,"Çok Düşük","Devretmek","Gerek Yoktur",null,null,null,null,null,1,1,1,"Çok Düşük","Devretmek","Gerek Yoktur"]
[94,null,null,null,null,1,1,1,"Çok Düşük","Devretmek","Gerek Yoktur",null,null,null,null,null,1,1,1,"Çok Düşük","Devretmek","Gerek Yoktur"]
[95,null,null,null,null,1,1,1,"Çok Düşük","Devretmek","Gerek Yoktur",null,null,null,null,null,1,1,1,"Çok Düşük","Devretmek","Gerek Yoktur"]
[96,null,null,null,null,1,1,1,"Çok Düşük","Devretmek","Gerek Yoktur",null,null,null,null,null,1,1,1,"Çok Düşük","Devretmek","Gerek Yoktur"]
[97,null,null,null,null,1,1,1,"Çok Düşük","Devretmek","Gerek Yoktur",null,null,null,null,null,1,1,1,"Çok Düşük","Devretmek","Gerek Yoktur"]
[98,null,null,null,null,1,1,1,"Çok Düşük","Devretmek","Gerek Yoktur",null,null,null,null,null,1,1,1,"Çok Düşük","Devretmek","Gerek Yoktur"]
[99,null,null,null,null,1,1,1,"Çok Düşük","Devretmek","Gerek Yoktur",null,null,null,null,null,1,1,1,"Çok Düşük","Devretmek","Gerek Yoktur"]
[100,null,null,null,null,1,1,1,"Çok Düşük","Devretmek","Gerek Yoktur",null,null,null,null,null,1,1,1,"Çok Düşük","Devretmek","Gerek Yoktur"]
[101,null,null,null,null,1,1,1,"Çok Düşük","Devretmek","Gerek Yoktur",null,null,null,null,null,1,1,1,"Çok Düşük","Devretmek","Gerek Yoktur"]
[102,null,null,null,null,1,1,1,"Çok Düşük","Devretmek","Gerek Yoktur",null,null,null,null,null,1,1,1,"Çok Düşük","Devretmek","Gerek Yoktur"]
[103,null,null,null,null,1,1,1,"Çok Düşük","Devretmek","Gerek Yoktur",null,null,null,null,null,1,1,1,"Çok Düşük","Devretmek","Gerek Yoktur"]
[104,null,null,null,null,1,1,1,"Çok Düşük","Devretmek","Gerek Yoktur",null,null,null,null,null,1,1,1,"Çok Düşük","Devretmek","Gerek Yoktur"]
[105,null,null,null,null,1,1,1,"Çok Düşük","Devretmek","Gerek Yoktur",null,null,null,null,null,1,1,1,"Çok Düşük","Devretmek","Gerek Yoktur"]
[106,null,null,null,null,1,1,1,"Çok Düşük","Devretmek","Gerek Yoktur",null,null,null,null,null,1,1,1,"Çok Düşük","Devretmek","Gerek Yoktur"]
[107,null,null,null,null,1,1,1,"Çok Düşük","Devretmek","Gerek Yoktur",null,null,null,null,null,1,1,1,"Çok Düşük","Devretmek","Gerek Yoktur"]
[108,null,null,null,null,1,1,1,"Çok Düşük","Devretmek","Gerek Yoktur",null,null,null,null,null,1,1,1,"Çok Düşük","Devretmek","Gerek Yoktur"]
[109,null,null,null,null,1,1,1,"Çok Düşük","Devretmek","Gerek Yoktur",null,null,null,null,null,1,1,1,"Çok Düşük","Devretmek","Gerek Yoktur"]
[110,null,null,null,null,1,1,1,"Çok Düşük","Devretmek","Gerek Yoktur",null,null,null,null,null,1,1,1,"Çok Düşük","Devretmek","Gerek Yoktur"]
[111,null,null,null,null,1,1,1,"Çok Düşük","Devretmek","Gerek Yoktur",null,null,null,null,null,1,1,1,"Çok Düşük","Devretmek","Gerek Yoktur"]
[112,null,null,null,null,1,1,1,"Çok Düşük","Devretmek","Gerek Yoktur",null,null,null,null,null,1,1,1,"Çok Düşük","Devretmek","Gerek Yoktur"]
[113,null,null,null,null,1,1,1,"Çok Düşük","Devretmek","Gerek Yoktur",null,null,null,null,null,1,1,1,"Çok Düşük","Devretmek","Gerek Yoktur"]
[114,null,null,null,null,1,1,1,"Çok Düşük","Devretmek","Gerek Yoktur",null,null,null,null,null,1,1,1,"Çok Düşük","Devretmek","Gerek Yoktur"]
[115,null,null,null,null,1,1,1,"Çok Düşük","Devretmek","Gerek Yoktur",null,null,null,null,null,1,1,1,"Çok Düşük","Devretmek","Gerek Yoktur"]
[116,null,null,null,null,1,1,1,"Çok Düşük","Devretmek","Gerek Yoktur",null,null,null,null,null,1,1,1,"Çok Düşük","Devretmek","Gerek Yoktur"]
[117,null,null,null,null,1,1,1,"Çok Düşük","Devretmek","Gerek Yoktur",null,null,null,null,null,1,1,1,"Çok Düşük","Devretmek","Gerek Yoktur"]
[118,null,null,null,null,1,1,1,"Çok Düşük","Devretmek","Gerek Yoktur",null,null,null,null,null,1,1,1,"Çok Düşük","Devretmek","Gerek Yoktur"]
[119,null,null,null,null,1,1,1,"Çok Düşük","Devretmek","Gerek Yoktur",null,null,null,null,null,1,1,1,"Çok Düşük","Devretmek","Gerek Yoktur"]
[120,null,null,null,null,1,1,1,"Çok Düşük","Devretmek","Gerek Yoktur",null,null,null,null,null,1,1,1,"Çok Düşük","Devretmek","Gerek Yoktur"]
[121,null,null,null,null,1,1,1,"Çok Düşük","Devretmek","Gerek Yoktur",null,null,null,null,null,1,1,1,"Çok Düşük","Devretmek","Gerek Yoktur"]
[122,null,null,null,null,1,1,1,"Çok Düşük","Devretmek","Gerek Yoktur",null,null,null,null,null,1,1,1,"Çok Düşük","Devretmek","Gerek Yoktur"]
[123,null,null,null,null,1,1,1,"Çok Düşük","Devretmek","Gerek Yoktur",null,null,null,null,null,1,1,1,"Çok Düşük","Devretmek","Gerek Yoktur"]
[124,null,null,null,null,1,1,1,"Çok Düşük","Devretmek","Gerek Yoktur",null,null,null,null,null,1,1,1,"Çok Düşük","Devretmek","Gerek Yoktur"]
[125,null,null,null,null,1,1,1,"Çok Düşük","Devretmek","Gerek Yoktur",null,null,null,null,null,1,1,1,"Çok Düşük","Devretmek","Gerek Yoktur"]
[126,null,null,null,null,1,1,1,"Çok Düşük","Devretmek","Gerek Yoktur",null,null,null,null,null,1,1,1,"Çok Düşük","Devretmek","Gerek Yoktur"]
[127,null,null,null,null,1,1,1,"Çok Düşük","Devretmek","Gerek Yoktur",null,null,null,null,null,1,1,1,"Çok Düşük","Devretmek","Gerek Yoktur"]
[128,null,null,null,null,1,1,1,"Çok Düşük","Devretmek","Gerek Yoktur",null,null,null,null,null,1,1,1,"Çok Düşük","Devretmek","Gerek Yoktur"]
[129,null,null,null,null,1,1,1,{"$f":"IF(H133<=4,\"Çok Düşük\",(IF(H133<=8,\"Düşük\",(IF(H133<=14,\"Orta\",(IF(H133<=19,\"Yüksek\",(IF(H133<=25,\"Çok Yüksek\",)))))))))","v":"Çok Düşük"},"Devretmek","Gerek Yoktur",null,null,null,null,null,1,1,1,{"$f":"IF(S133<=4,\"Çok Düşük\",(IF(S133<=8,\"Düşük\",(IF(S133<=14,\"Orta\",(IF(S133<=19,\"Yüksek\",(IF(S133<=25,\"Çok Yüksek\",)))))))))","v":"Çok Düşük"},"Devretmek","Gerek Yoktur"]
[130,null,null,null,null,1,1,1,"Çok Düşük","Devretmek","Gerek Yoktur",null,null,null,null,null,1,1,1,"Çok Düşük","Devretmek","Gerek Yoktur"]
[131,null,null,null,null,1,1,1,"Çok Düşük","Devretmek","Gerek Yoktur",null,null,null,null,null,1,1,1,"Çok Düşük","Devretmek","Gerek Yoktur"]
[132,null,null,null,null,1,1,1,"Çok Düşük","Devretmek","Gerek Yoktur",null,null,null,null,null,1,1,1,"Çok Düşük","Devretmek","Gerek Yoktur"]
[133,null,null,null,null,1,1,1,"Çok Düşük","Devretmek","Gerek Yoktur",null,null,null,null,null,1,1,1,"Çok Düşük","Devretmek","Gerek Yoktur"]
[134,null,null,null,null,1,1,{"$f":"F138*G138","v":1},"Çok Düşük","Devretmek",{"$f":"IF(H138<=12,\"Gerek Yoktur\",(IF(H138<=25,\"Gereklidir\")))","v":"Gerek Yoktur"},null,null,null,null,null,1,1,{"$f":"Q138*R138","v":1},"Çok Düşük","Devretmek",{"$f":"IF(S138<=12,\"Gerek Yoktur\",(IF(S138<=25,\"Gereklidir\")))","v":"Gerek Yoktur"}]
[135,null,null,null,null,1,1,1,"Çok Düşük","Devretmek","Gerek Yoktur",null,null,null,null,null,1,1,1,"Çok Düşük","Devretmek","Gerek Yoktur"]
[136,null,null,null,null,1,1,1,"Çok Düşük","Devretmek","Gerek Yoktur",null,null,null,null,null,1,1,1,"Çok Düşük","Devretmek","Gerek Yoktur"]
[137,null,null,null,null,1,1,1,"Çok Düşük","Devretmek","Gerek Yoktur",null,null,null,null,null,1,1,1,"Çok Düşük","Devretmek","Gerek Yoktur"]
[138,null,null,null,null,1,1,1,"Çok Düşük","Devretmek","Gerek Yoktur",null,null,null,null,null,1,1,1,"Çok Düşük","Devretmek","Gerek Yoktur"]
[139,null,null,null,null,1,1,1,"Çok Düşük","Devretmek","Gerek Yoktur",null,null,null,null,null,1,1,1,"Çok Düşük","Devretmek","Gerek Yoktur"]
[140,null,null,null,null,1,1,1,"Çok Düşük","Devretmek","Gerek Yoktur",null,null,null,null,null,1,1,1,"Çok Düşük","Devretmek","Gerek Yoktur"]
[141,null,null,null,null,1,1,1,"Çok Düşük","Devretmek","Gerek Yoktur",null,null,null,null,null,1,1,1,"Çok Düşük","Devretmek","Gerek Yoktur"]
[142,null,null,null,null,1,1,1,"Çok Düşük","Devretmek","Gerek Yoktur",null,null,null,null,null,1,1,1,"Çok Düşük","Devretmek","Gerek Yoktur"]
[143,null,null,null,null,1,1,1,"Çok Düşük","Devretmek","Gerek Yoktur",null,null,null,null,null,1,1,1,"Çok Düşük","Devretmek","Gerek Yoktur"]
[144,null,null,null,null,1,1,1,"Çok Düşük","Devretmek","Gerek Yoktur",null,null,null,null,null,1,1,1,"Çok Düşük","Devretmek","Gerek Yoktur"]
[145,null,null,null,null,1,1,1,"Çok Düşük","Devretmek","Gerek Yoktur",null,null,null,null,null,1,1,1,"Çok Düşük","Devretmek","Gerek Yoktur"]
[146,null,null,null,null,1,1,1,"Çok Düşük","Devretmek","Gerek Yoktur",null,null,null,null,null,1,1,1,"Çok Düşük","Devretmek","Gerek Yoktur"]
[147,null,null,null,null,1,1,1,"Çok Düşük","Devretmek","Gerek Yoktur",null,null,null,null,null,1,1,1,"Çok Düşük","Devretmek","Gerek Yoktur"]
[148,null,null,null,null,1,1,1,"Çok Düşük","Devretmek","Gerek Yoktur",null,null,null,null,null,1,1,1,"Çok Düşük","Devretmek","Gerek Yoktur"]
[149,null,null,null,null,1,1,1,"Çok Düşük","Devretmek","Gerek Yoktur",null,null,null,null,null,1,1,1,"Çok Düşük","Devretmek","Gerek Yoktur"]
[150,null,null,null,null,1,1,1,"Çok Düşük","Devretmek","Gerek Yoktur",null,null,null,null,null,1,1,1,"Çok Düşük","Devretmek","Gerek Yoktur"]